Workbook

Sheet 책장
B1: Born To Read | U1: 페이지 | V1: 무게
B2: 번호 | C2: 제목 | D2: 부제 | E2: 원제 | F2: 저자 | G2: 번역 | H2: 출판사 | I2: 횟수 | J2: 하트 | K2: 대분류 | L2: 소분류 | M2: 국가 | N2: 완독일 | O2: 발매일 | P2: 장소 | Q2: 페이지 | R2: 중량 g | S2: ISBN-13 | U2: =SUM(Q3:Q438) -> 139524 | V2: =SUM(R3:R438) -> 176239
B3: 1 | C3: 告白 | D3: - | E3: - | F3: 湊かなえ | G3: - | H3: 双葉社 | I3: 3 | J3: ♥ | K3: 소설 | L3: 추리소설 | M3: 일본 | N3: - | O3: 2010-04-22 | P3: 구매 | Q3: 317 | R3: - | S3: 978475513448
B4: =IF(C4="","",ROW(B2)) -> 2 | C4: 나의 문화유산 답사기 10 | D4: 서울편 2 | E4: - | F4: 유홍준 | G4: - | H4: 창비 | I4: 1 | J4: - | K4: 교양 | L4: 역사학 | M4: 한국 | N4: - | O4: 2017-08-21 | P4: 교육사 병영도서관 | Q4: 480 | R4: 816 | S4: 9788936474409
B5: =IF(C5="","",ROW(B3)) -> 3 | C5: 곰브리치 세계사 | D5: - | E5: Eine kurze Weltgeschichte für junge Leser | F5: Ernst Hans Josef Gombrich | G5: 박민수 | H5: 비룡소 | I5: 1 | J5: - | K5: 교양 | L5: 역사학 | M5: 오스트리아 | N5: - | O5: 2010-08-13 | P5: 교육사 병영도서관 | Q5: 461 | R5: - | S5: 9788949187112
B6: 4 | C6: 관계의 힘 | D6: 상처받지 않고 행복해지는 | E6: - | F6: Raymond Joe | G6: - | H6: 한국경제신문사 | I6: 1 | J6: - | K6: 수필 | L6: 인간관계 | M6: 한국 | N6: - | O6: 2013-09-23 | P6: 교육사 병영도서관 | Q6: 264 | R6: - | S6: 9788947529280
B7: 5 | C7: 축소지향의 일본인 그 이후 | D7: - | E7: - | F7: 이어령 | G7: - | H7: 기린원 | I7: 1 | J7: - | K7: 인문 | L7: 일본학 | M7: 한국 | N7: - | O7: 1994-04-01 | P7: 교육사 병영도서관 | Q7: 334 | R7: - | S7: 9788943900588
B8: 6 | C8: 기린의 날개 | D8: - | E8: 麒麟の翼 | F8: 東野圭吾 | G8: 김난주 | H8: 재인 | I8: 1 | J8: - | K8: 소설 | L8: 추리소설 | M8: 일본 | N8: - | O8: 2017-02-06 | P8: 인사과 | Q8: 420 | R8: 791 | S8: 9788990982674
B9: 7 | C9: 매스커레이드 나이트 | D9: - | E9: マスカレード・ナイト | F9: 東野圭吾 | G9: 양윤욕 | H9: 현대문학 | I9: 1 | J9: - | K9: 소설 | L9: 추리소설 | M9: 일본 | N9: - | O9: 2018-08-30 | P9: 팽성 이동도서관 | Q9: 556 | R9: 648 | S9: 9788972758990
B10: 8 | C10: 나의 외국어 학습기 | D10: 읽기와 번역을 위한 한문, 중국어, 일본어 공부 | E10: - | F10: 김태완 | G10: - | H10: 메멘토 | I10: 1 | J10: - | K10: 수필 | L10: 어학 | M10: 한국 | N10: - | O10: 2018-10-08 | P10: 팽성 이동도서관 | Q10: 320 | R10: 450 | S10: 9788998614577
B11: 9 | C11: 세상에서 가장 짧은 세계사 | D11: 2,000년 유럽의 모든 역사를 이해하기 위한 최소한의 지식 | E11: The Shortest History of Europe | F11: 김종원 | G11: - | H11: 위즈덤하우스 | I11: 1 | J11: ♥ | K11: 교양 | L11: 역사학 | M11: 한국 | N11: - | O11: 2017-11-07 | P11: 팽성 이동도서관 | Q11: 296 | R11: 407 | S11: 9791162201046
B12: 10 | C12: 채식주의자 | D12: - | E12: - | F12: 한강 | G12: - | H12: 창비 | I12: 1 | J12: ♥ | K12: 소설 | L12: 현대소설 | M12: 한국 | N12: - | O12: 2007-10-30 | P12: 병영도서관 | Q12: 247 | R12: - | S12: 9788936433598
B13: 11 | C13: 이럴 땐 도대체 뭐라고 말해야 하나요? | D13: 직장, 가정, 사회에서 바로 통하는 결정적 대화 기술 | E13: 「察しない男」と「説明しない女」のモメない会話術 | F13: 五百田達成 | G13: 황소연 | H13: 지식너머 | I13: 1 | J13: - | K13: 수필 | L13: 인간관계 | M13: 일본 | N13: - | O13: 2017-04-07 | P13: 병영도서관 | Q13: 212 | R13: 278 | S13: 9788952785336
B14: 12 | C14: 기사단장 죽이기 1 기사단장 죽이기 2 | D14: 현현하는 이데아 전이하는 메타포 | E14: 騎士団長殺し 第１部: 顕れるイデア編 騎士団長殺し 第2部: 遷ろうメタファー編 | F14: 村上春樹 | G14: 홍은주 | H14: 문학동네 | I14: 1 | J14: - | K14: 소설 | L14: 현대소설 | M14: 일본 | N14: - | O14: 2017-07-12 | P14: 팽성 이동도서관 | Q14: =568+600 -> 1168 | R14: =654+674 -> 1328 | S14: 9788954646123 9788954646130
B15: 13 | C15: 지적인 대화를 위한 넓고 얇은 지식 현실너머 편 | D15: 한 권으로 현실 세계를 통달하는 지식 여행서 | E15: - | F15: 채사장 | G15: - | H15: 한빛비즈 | I15: 2 | J15: ♥ | K15: 교양 | L15: 인문학 | M15: 한국 | N15: - | O15: 2015-01-16 | P15: 팽성 이동도서관 | Q15: 376 | R15: 542 | S15: 9788994120997
B16: 14 | C16: 오베라는 남자 | D16: - | E16: En man som heter Ove | F16: Fredrik Backman | G16: 최민우 | H16: 다산책방 | I16: 1 | J16: - | K16: 소설 | L16: 현대소설 | M16: 스웨덴 | N16: - | O16: 2015-05-20 | P16: 병영도서관 | Q16: 452 | R16: 496 | S16: 9791130605210
B17: 15 | C17: 암살자닷컴 | D17: - | E17: 殺し屋.COM | F17: 曽根圭介 | G17: 권일영 | H17: 예담 | I17: 1 | J17: ♥ | K17: 소설 | L17: 추리소설 | M17: 일본 | N17: - | O17: 2016-12-25 | P17: 팽성 이동도서관 | Q17: 320 | R17: 399 | S17: 9788959130924
B18: 16 | C18: 미스 함무라비 | D18: - | E18: - | F18: 문유석 | G18: - | H18: 문학동네 | I18: 1 | J18: ♥ | K18: 소설 | L18: 현대소설 | M18: 한국 | N18: - | O18: 2016-12-02 | P18: 팽성 이동도서관 | Q18: 388 | R18: 412 | S18: 9788954643535
B19: 17 | C19: 비탄의 문 1 비탄의 문 2 | D19: - | E19: 悲嘆の門 上 悲嘆の門 下 | F19: 宮部みゆき | G19: 김은모 | H19: 문학동네 | I19: 1 | J19: X | K19: 소설 | L19: 현대소설 | M19: 일본 | N19: - | O19: 2018-10-19 | P19: 팽성 이동도서관 | Q19: =516+508 -> 1024 | R19: =604+597 -> 1201 | S19: 9788954653206 9788954653213
B20: 18 | C20: 유병재 농담집 블랙 코미디 | D20: - | E20: - | F20: 유병재 | G20: - | H20: 비채 | I20: 1 | J20: - | K20: 수필 | L20: 에세이 | M20: 한국 | N20: - | O20: 2017-10-30 | P20: 팽성 이동도서관 | Q20: 200 | R20: 258 | S20: 9788934979289
B21: 19 | C21: 살인자의 기억법 | D21: - | E21: - | F21: 김영하 | G21: - | H21: 문학동네 | I21: 1 | J21: ♥ | K21: 소설 | L21: 현대소설 | M21: 한국 | N21: - | O21: 2013-07-25 | P21: 팽성 이동도서관 | Q21: 176 | R21: 279 | S21: 9788954622035
B22: 20 | C22: 11문자 살인사건 | D22: - | E22: 11文字の殺人 | F22: 東野圭吾 | G22: 민경욱 | H22: 알에이치코리아 | I22: 2 | J22: - | K22: 소설 | L22: 추리소설 | M22: 일본 | N22: - | O22: 2018-07-13 | P22: 팽성 이동도서관 | Q22: 344 | R22: 451 | S22: 9788925563770
B23: 21 | C23: 당신을 위한 소설 | D23: - | E23: あなたのための物語 | F23: 長谷敏司 | G23: 이규원 | H23: 북스피어 | I23: 1 | J23: X | K23: 소설 | L23: 과학소설 | M23: 일본 | N23: - | O23: 2017-03-15 | P23: 팽성 이동도서관 | Q23: 468 | R23: 538 | S23: 9788998791612
B24: 22 | C24: 개인주의자 선언 | D24: 판사 문유석의 일상유감 | E24: - | F24: 문유석 | G24: - | H24: 문학동네 | I24: 1 | J24: ♥ | K24: 수필 | L24: 사회비평 | M24: 한국 | N24: - | O24: 2015-09-23 | P24: 팽성 이동도서관 | Q24: 280 | R24: 456 | S24: 9788954637756
B25: 23 | C25: 날아라 병아리 | D25: 초보운전 운전연수 필독서 | E25: - | F25: 오준우 | G25: - | H25: 상상박스 | I25: 1 | J25: - | K25: 실용 | L25: 운전 | M25: 한국 | N25: - | O25: 2013-03-01 | P25: 수송반 | Q25: 270 | R25: - | S25: 9788998325015
B26: 24 | C26: 자동차 운전 교과서 | D26: 도로에서 절대 기죽지 않는 초보 운전자를 위한 안전, 방어 운전술 | E26: 圖解運轉テクニック この通りにやれば必ず上達する | F26: 川崎純子 | G26: 신찬 | H26: 보누스 | I26: 1 | J26: - | K26: 실용 | L26: 운전 | M26: 일본 | N26: - | O26: 2016-09-20 | P26: 수송반 | Q26: 208 | R26: 550 | S26: 9788964942710
B27: 25 | C27: 대선의 현대사 | D27: 표심은 어디로 어떻게 흔들려왔을까 | E27: - | F27: 김은식 | G27: - | H27: 브레인스토어 | I27: 1 | J27: - | K27: 교양 | L27: 역사학 | M27: 한국 | N27: - | O27: 2017-04-28 | P27: 팽성 이동도서관 | Q27: 224 | R27: 357 | S27: 9791188073030
B28: 26 | C28: 제7의 감각, 초연결지능 | D28: 네트워크 시대의 권력, 부, 생존 | E28: The Seventh Sense | F28: Joshua Cooper Ramo | G28: 정주연 | H28: 미래의창 | I28: 1 | J28: - | K28: 인문 | L28: 미래학 | M28: 미국 | N28: - | O28: 2017-04-21 | P28: 팽성 이동도서관 | Q28: 416 | R28: 746 | S28: 9788959894581
B29: 27 | C29: 1cm 첫 번째 이야기 | D29: 매일 1cm만큼 찾아오는 일상의 크리에이티브한 변화 | E29: - | F29: 김은주 | G29: - | H29: 허밍버드 | I29: 1 | J29: - | K29: 수필 | L29: 에세이 | M29: 한국 | N29: - | O29: 2014-02-01 | P29: 병영도서관 | Q29: 304 | R29: 478 | S29: 9788968330216
B30: 28 | C30: 1cm+ | D30: 인생에 필요한 1cm를 찾아가는 크리에이티브한 여정 | E30: - | F30: 김은주 | G30: - | H30: 허밍버드 | I30: 1 | J30: - | K30: 수필 | L30: 에세이 | M30: 한국 | N30: - | O30: 2013-07-18 | P30: 병영도서관 | Q30: 296 | R30: 490 | S30: 9788968330124
B31: 29 | C31: 한글자 | D31: 소중한 것은 한 글자로 되어 있다 | E31: - | F31: 정철 | G31: - | H31: 허밍버드 | I31: 1 | J31: - | K31: 수필 | L31: 에세이 | M31: 한국 | N31: - | O31: 2014-08-04 | P31: 병영도서관 | Q31: 344 | R31: 542 | S31: 9788968330322
B32: 30 | C32: 실연의 박물관 | D32: 실연에 관한 82개의 이야기 헤어짐을 기증하다 | E32: - | F32: 아라리오뮤지엄 | G32: - | H32: arte | I32: 1 | J32: - | K32: 수필 | L32: 에세이 | M32: 한국 | N32: - | O32: 2016-05-05 | P32: 병영도서관 | Q32: 320 | R32: 458 | S32: 9788950964818
B33: 31 | C33: 에드워드 툴레인의 신기한 여행 | D33: - | E33: The miraculous journey of Edward Tulane | F33: Kate DiCamillo | G33: 김경미 | H33: 비룡소 | I33: 1 | J33: - | K33: 소설 | L33: 동화 | M33: 미국 | N33: - | O33: 2009-02-17 | P33: 병영도서관 | Q33: 201 | R33: 517 | S33: 9788949171197
B34: 32 | C34: 번역은 반역인가 | D34: 우리 번역 문화에 대한 체험적 보고서 | E34: - | F34: 박상익 | G34: - | H34: 푸른역사 | I34: 1 | J34: - | K34: 인문 | L34: 언어학 | M34: 한국 | N34: - | O34: 2006-02-10 | P34: 병영도서관 | Q34: 275 | R34: - | S34: 9788991510173
B35: 33 | C35: 잠 | D35: - | E35: ねむり | F35: 村上春樹 | G35: 양윤옥 | H35: 문학사상 | I35: 1 | J35: - | K35: 소설 | L35: 현대소설 | M35: 일본 | N35: - | O35: 2012-10-22 | P35: 병영도서관 | Q35: 100 | R35: - | S35: 9788970128801
B36: 34 | C36: 스무살, 도쿄 | D36: - | E36: 東京物語 | F36: 奥田英朗 | G36: 양윤옥 | H36: 은행나무 | I36: 1 | J36: - | K36: 소설 | L36: 현대소설 | M36: 일본 | N36: - | O36: 2008-05-26 | P36: 병영도서관 | Q36: 392 | R36: 486 | S36: 9788956609393
B37: 35 | C37: 하고 싶은 일 하면서 살면 왜 안돼요? | D37: 남들처럼 산다고 성공하는 것도 아닌데 | E37: - | F37: 정제희 | G37: - | H37: 21세기북스 | I37: 1 | J37: ♥ | K37: 수필 | L37: 진로 | M37: 한국 | N37: - | O37: 2018-10-29 | P37: 팽성 이동도서관 | Q37: 224 | R37: 317 | S37: 9788950977993
B38: 36 | C38: 퍼스트 클래스 승객은 펜을 빌리지 않는다 | D38: 비행기 1등석 담당 스튜어디스가 발견한 3%의 성공 습관 | E38: ファーストクラスに乗る人のシンプルな習慣 | F38: 美月あきこ | G38: 윤은혜 | H38: 중앙북스 | I38: 1 | J38: ♥ | K38: 수필 | L38: 자기개발 | M38: 일본 | N38: - | O38: 2013-09-02 | P38: 병영도서관 | Q38: 228 | R38: 346 | S38: 9788927804673
B39: 37 | C39: 한국인은 미쳤다! | D39: LG전자 해외 법인을 10년간 이끈 외국인 CEO의 생생한 증언 | E39: Ils sont fous ces coréens! | F39: Eric Surdej | G39: 권지현 | H39: 북하우스 | I39: 1 | J39: ♥ | K39: 수필 | L39: 문화인류학 | M39: 프랑스 | N39: - | O39: 2015-07-24 | P39: 병영도서관 | Q39: 180 | R39: 310 | S39: 9788956053332
B40: 38 | C40: 내가 공부하는 이유 | D40: 일본 메이지대 괴짜 교수의 인생을 바꾸는 평생 공부법 | E40: 人はなぜ学ばなければならないのか | F40: 齋藤孝 | G40: 오근영 | H40: 걷는나무 | I40: 1 | J40: ♥ | K40: 수필 | L40: 자기개발 | M40: 일본 | N40: 2019-04-26 | O40: 2014-06-16 | P40: 병영도서관 | Q40: 220 | R40: 419 | S40: 9788901165196
B41: 39 | C41: 문득 사람이 그리운 날엔 시를 읽는다 | D41: - | E41: - | F41: 박광수 | G41: - | H41: 걷는나무 | I41: 1 | J41: - | K41: 시 | L41: 시 | M41: 한국 | N41: 2019-04-27 | O41: 2014-12-24 | P41: 병영도서관 | Q41: 244 | R41: 444 | S41: 9788901177977
B42: 40 | C42: 미드나잇 저널 | D42: - | E42: ミッドナイト・ジャーナル | F42: 本城雅人 | G42: 김난주 | H42: 예문아카이브 | I42: 1 | J42: X | K42: 소설 | L42: 현대소설 | M42: 일본 | N42: 2019-04-27 | O42: 2017-01-10 | P42: 팽성 이동도서관 | Q42: 552 | R42: 833 | S42: 9791187749103
B43: 41 | C43: 비관주의자를 위한 낙관주의 수업 | D43: 소소하지만 확실한 행복, 낙관주의 만나기 | E43: Cultiver l'optimisme | F43: Delphine Luginbuhl, Aurélie Pennel | G43: 박태신 | H43: 가지 | I43: 1 | J43: ♥ | K43: 교양 | L43: 심리학 | M43: 프랑스 | N43: 2019-04-27 | O43: 2018-11-05 | P43: 병영도서관 | Q43: 210 | R43: 245 | S43: 9791186440360
B44: 42 | C44: 살면서 쉬웠던 날은 단 하루도 없었다 | D44: - | E44: - | F44: 박광수 | G44: - | H44: 위즈덤하우스 | I44: 1 | J44: - | K44: 수필 | L44: 에세이 | M44: 한국 | N44: 2019-04-27 | O44: 2015-07-24 | P44: 병영도서관 | Q44: 256 | R44: 418 | S44: 9788959139477
B45: 43 | C45: 대우주시대 | D45: - | E45: Quarter Share | F45: Nathan Lowell | G45: 이수현 | H45: 구픽 | I45: 1 | J45: - | K45: 소설 | L45: 과학소설 | M45: 미국 | N45: 2019-04-28 | O45: 2017-03-17 | P45: 팽성 이동도서관 | Q45: 388 | R45: 453 | S45: 9791187886068
B46: 44 | C46: 낯가림이 무기다 | D46: 소리 없이 강한 사람들 | E46: 人見知りが武器になる | F46: 高嶋美里 | G46: 정혜지 | H46: 흐름출판 | I46: 1 | J46: ♥ | K46: 수필 | L46: 자기개발 | M46: 일본 | N46: 2019-04-28 | O46: 2015-08-07 | P46: 병영도서관 | Q46: 204 | R46: 232 | S46: 9788965961666
B47: 45 | C47: 내 문장이 그렇게 이상한가요? | D47: 내가 쓴 글, 내가 다듬는 법 | E47: - | F47: 김정선 | G47: - | H47: 유유 | I47: 1 | J47: ♥ | K47: 수필 | L47: 글쓰기 | M47: 한국 | N47: 2019-04-28 | O47: 2016-01-24 | P47: 병영도서관 | Q47: 204 | R47: 237 | S47: 9791185152431
B48: 46 | C48: 시간과 공간이 정지하는 방 | D48: 이외수 쓰고 정태련 그리다 | E48: - | F48: 이외수 | G48: - | H48: 해냄출판사 | I48: 1 | J48: - | K48: 수필 | L48: 에세이 | M48: 한국 | N48: 2019-04-28 | O48: 2017-08-25 | P48: 병영도서관 | Q48: 240 | R48: 488 | S48: 9788965746317
B49: 47 | C49: 잘못은 우리 별에 있어 | D49: - | E49: The Fault In Our Stars | F49: John Green | G49: 김지원 | H49: 북폴리오 | I49: 1 | J49: - | K49: 소설 | L49: 성장소설 | M49: 미국 | N49: 2019-04-29 | O49: 2014-05-22 | P49: 병영도서관 | Q49: 328 | R49: 456 | S49: 9788937833762
B50: 48 | C50: 지적인 대화를 위한 넓고 얕은 지식 | D50: 한 권으로 현실 세계를 통달하는 지식 여행서 | E50: - | F50: 채사장 | G50: - | H50: 한빛비즈 | I50: 2 | J50: ♥ | K50: 교양 | L50: 인문학 | M50: 한국 | N50: 2019-04-30 | O50: 2014-12-05 | P50: 병영도서관 | Q50: 376 | R50: 542 | S50: 9788994120966
B51: 49 | C51: 국민을 그만두는 방법 | D51: 국가이데올로기로서의 민족과 문화 | E51: 地球時代の民族=文化理論 | F51: 西川長夫 | G51: 윤해동 방기헌 | H51: 역사비평사 | I51: 1 | J51: - | K51: 인문 | L51: 철학 | M51: 일본 | N51: 2019-04-30 | O51: 2009-11-30 | P51: 병영도서관 | Q51: 255 | R51: - | S51: 9788976962775
B52: 50 | C52: 건축이 건들건들 | D52: 앗 이건 예술이야! 80 | E52: Horrible Science | F52: Michael Cox | G52: 오은숙 | H52: 김영사 | I52: 2 | J52: - | K52: 교양 | L52: 아동 | M52: 영국 | N52: 2019-04-30 | O52: 1999-08-25 | P52: 병영도서관 | Q52: 154 | R52: - | S52: 9788934904281
B53: 51 | C53: 자동차가 부릉부릉 | D53: 앗 문화가 보인다! 72 | E53: - | F53: 명로진 | G53: - | H53: 김영사 | I53: 2 | J53: - | K53: 교양 | L53: 아동 | M53: 한국 | N53: 2019-05-01 | O53: 2000-04-25 | P53: 병영도서관 | Q53: 190 | R53: - | S53: 9788934904687
B54: 52 | C54: 하루 도쿄 산책 | D54: 아라카와선 타고 5000엔으로 즐기는 | E54: - | F54: 윤선 최문아 | G54: - | H54: 삶은책 | I54: 1 | J54: ♥ | K54: 수필 | L54: 여행 | M54: 한국 | N54: 2019-05-01 | O54: 2017-05-30 | P54: 팽성 이동도서관 | Q54: 256 | R54: 335 | S54: 9791196102609
B55: 53 | C55: 여행 능력자를 위한 거의 모든 상식 | D55: 그 누구도 알려준 적 없는 특급 여행 노하우 | E55: The Book of Everything | F55: Nigel Holmes | G55: 이경 | H55: 안그라픽스 | I55: 1 | J55: ♥ | K55: 실용 | L55: 여행 | M55: 영국 | N55: 2019-05-01 | O55: 2017-01-10 | P55: 팽성 이동도서관 | Q55: 204 | R55: 711 | S55: 9788970598802
B56: 54 | C56: 말의 품격 | D56: 말과 사람과 품격에 대한 생각들 | E56: - | F56: 이기주 | G56: - | H56: 황소북스 | I56: 1 | J56: ♥ | K56: 수필 | L56: 에세이 | M56: 한국 | N56: 2019-05-01 | O56: 2017-05-29 | P56: 병영도서관 | Q56: 232 | R56: 319 | S56: 9788997092772
B57: 55 | C57: 돌이킬 수 없는 약속 | D57: - | E57: 誓約 | F57: 薬丸岳 | G57: 김성미 | H57: 북플라자 | I57: 1 | J57: ♥ | K57: 소설 | L57: 추리소설 | M57: 일본 | N57: 2019-05-02 | O57: 2017-02-02 | P57: 팽성 이동도서관 | Q57: 380 | R57: 743 | S57: 9788998274795
B58: 56 | C58: 7년의 밤 | D58: - | E58: - | F58: 정유정 | G58: - | H58: 은행나무 | I58: 1 | J58: ♥ | K58: 소설 | L58: 현대소설 | M58: 한국 | N58: 2019-05-04 | O58: 2011-03-23 | P58: 병영도서관 | Q58: 523 | R58: 707 | S58: 9788956604992
B59: 57 | C59: 컴퓨터가 키득키득 | D59: 앗 이렇게 재미있는 과학이! 24 | E59: Horrible Science | F59: Michael Coleman | G59: 이무열 | H59: 김영사 | I59: 1 | J59: - | K59: 교양 | L59: 아동 | M59: 영국 | N59: 2019-05-04 | O59: 2002-08-30 | P59: 병영도서관 | Q59: 154 | R59: - | S59: 9788934911326
B60: 58 | C60: 종교가 중얼중얼 | D60: 앗 이렇게 신비한 세계가! 98 | E60: Horrible Science | F60: Anita Ganeri | G60: 윤길순 | H60: 김영사 | I60: 1 | J60: - | K60: 교양 | L60: 아동 | M60: 영국 | N60: 2019-05-04 | O60: 2000-04-15 | P60: 병영도서관 | Q60: 140 | R60: - | S60: 9788934905158
B61: 59 | C61: 사랑해요 삼국시대 | D61: 앗 우리 것이 좋은거야! 60 | E61: - | F61: 남경태 | G61: - | H61: 김영사 | I61: 1 | J61: - | K61: 교양 | L61: 아동 | M61: 한국 | N61: 2019-05-05 | O61: 1999-11-15 | P61: 병영도서관 | Q61: 172 | R61: - | S61: 9788934904380
B62: 60 | C62: 고려가 고마워요 | D62: 앗 우리 것이 좋은거야! 62 | E62: - | F62: 남경태 | G62: - | H62: 김영사 | I62: 1 | J62: - | K62: 교양 | L62: 아동 | M62: 한국 | N62: 2019-05-05 | O62: 2002-03-22 | P62: 병영도서관 | Q62: 148 | R62: - | S62: 9788934909187
B63: 61 | C63: 태도에 관하여 | D63: 나를 살아가게 하는 가치들 | E63: - | F63: 임경선 | G63: - | H63: 한겨례출판 | I63: 1 | J63: ♥ | K63: 수필 | L63: 에세이 | M63: 한국 | N63: 2019-05-05 | O63: 2015-03-30 | P63: 병영도서관 | Q63: 304 | R63: 400 | S63: 9788984318885
B64: 62 | C64: 어린왕자 두번째 이야기 | D64: 마음이 외로운 당신을 위한 따뜻한 위로 | E64: The Return of the Young Prince | F64: Alejandro Guillermo Roemmers | G64: 김경집 | H64: 지식의숲 | I64: 1 | J64: - | K64: 소설 | L64: 동화 | M64: 아르헨티나 | N64: 2019-05-05 | O64: 2011-11-28 | P64: 병영도서관 | Q64: 215 | R64: - | S64: 9788957979105
B65: 63 | C65: 모리와 함께한 화요일 | D65: - | E65: Tuesdays with Morrie | F65: Mitch Albom | G65: 공경희 | H65: 세종서적 | I65: 1 | J65: - | K65: 소설 | L65: 성장소설 | M65: 미국 | N65: 2019-05-06 | O65: 2002-03-20 | P65: 병영도서관 | Q65: 248 | R65: - | S65: 9788984070820
B66: 64 | C66: 미움받을 용기 | D66: 자유롭고 행복한 삶을 위한 아들러의 가르침 | E66: 嫌われる勇気 | F66: 岸見一郎, 古賀史健 | G66: 전경아 | H66: 인플루엔셜 | I66: 1 | J66: - | K66: 교양 | L66: 심리학 | M66: 일본 | N66: 2019-05-06 | O66: 2014-11-17 | P66: 병영도서관 | Q66: 336 | R66: 600 | S66: 9788996991342
B67: 65 | C67: 홀리 가든 | D67: - | E67: ホリー・ガーデン | F67: 江國香織 | G67: 김난주 | H67: 소담출판사 | I67: 1 | J67: - | K67: 소설 | L67: 현대소설 | M67: 일본 | N67: 2019-05-08 | O67: 2007-10-19 | P67: 병영도서관 | Q67: 367 | R67: - | S67: 9788973819171
B68: 66 | C68: 변신 | D68: - | E68: Die Verwandlung | F68: Franz Kafka | G68: ? | H68: ? | I68: 1 | J68: - | K68: 소설 | L68: 고전 | M68: 독일 | N68: 2019-05-09 | O68: - | P68: 병영도서관 | Q68: - | R68: - | S68: -
B69: =IF(C69="","",ROW(B67)) -> 67 | C69: 엄마를 부탁해 | D69: - | E69: - | F69: 신경숙 | G69: - | H69: 창비 | I69: 1 | J69: ♥ | K69: 소설 | L69: 현대소설 | M69: 한국 | N69: 2019-05-11 | O69: 2008-11-10 | P69: 병영도서관 | Q69: 299 | R69: - | S69: 9788936433673
B70: 68 | C70: 2백년의 아이들 | D70: - | E70: 二百年の子供 | F70: 大江健三郎 | G70: 이송희 | H70: 문학수첩 | I70: 1 | J70: - | K70: 소설 | L70: 현대소설 | M70: 일본 | N70: 2019-05-12 | O70: 2004-06-03 | P70: 병영도서관 | Q70: 302 | R70: - | S70: 9788983921635
B71: 69 | C71: 오늘 내가 사는게 재미있는 이유 | D71: 30년간 정신과 의사로 일하고 15년간 파킨슨병을 앓으며 깨달은 | E71: - | F71: 김혜남 | G71: - | H71: 갤리온 | I71: 1 | J71: ♥ | K71: 수필 | L71: 에세이 | M71: 한국 | N71: 2019-05-13 | O71: 2015-03-23 | P71: 병영도서관 | Q71: 288 | R71: 434 | S71: 9788901203287
B72: 70 | C72: 칼의 노래 | D72: - | E72: - | F72: 김훈 | G72: - | H72: 문학동네 | I72: 1 | J72: X | K72: 소설 | L72: 현대소설 | M72: 한국 | N72: 2019-05-15 | O72: 2012-01-05 | P72: 병영도서관 | Q72: 398 | R72: 502 | S72: 9788954617246
B73: 71 | C73: 어린 왕자 | D73: - | E73: Le Petit Prince | F73: Antoine de Saint-Exupéry | G73: 김미정 | H73: 더클래식 | I73: 2 | J73: ♥ | K73: 소설 | L73: 동화 | M73: 프랑스 | N73: 2019-05-21 | O73: 2018-11-12 | P73: 구매 | Q73: 192 | R73: 50 | S73: 9791189581770
B74: 72 | C74: 베어타운 | D74: - | E74: Björnstad | F74: Fredrik Backman | G74: 이은선 | H74: 다산책방 | I74: 1 | J74: - | K74: 소설 | L74: 현대소설 | M74: 스웨덴 | N74: 2019-05-24 | O74: 2018-04-16 | P74: 병영도서관 | Q74: 572 | R74: 742 | S74: 9791130616650
B75: 73 | C75: 롬멜과 함께 전선에서 | D75: - | E75: Mit Rommel an der Front | F75: Hans von Luck | G75: 진중근 김진완 최두영 | H75: 길찾기 | I75: 1 | J75: - | K75: 수필 | L75: 회고록 | M75: 독일 | N75: 2019-05-27 | O75: 2018-06-15 | P75: 병영도서관 | Q75: 496 | R75: 658 | S75: 9791160853971
B76: 74 | C76: 모스크바의 신사 | D76: - | E76: A Gentleman in Moscow | F76: Amor Towles | G76: 서창렬 | H76: 현대문학 | I76: 1 | J76: - | K76: 소설 | L76: 현대소설 | M76: 미국 | N76: 2019-06-01 | O76: 2018-06-22 | P76: 병영도서관 | Q76: 723 | R76: 797 | S76: 9788972758945
B77: 75 | C77: 연애의 행방 | D77: - | E77: 恋のゴンドラ | F77: 東野圭吾 | G77: 양윤옥 | H77: 소미미디어 | I77: 1 | J77: ♥ | K77: 소설 | L77: 추리소설 | M77: 일본 | N77: 2019-06-03 | O77: 2018-01-31 | P77: 평택통신소 | Q77: 312 | R77: 443 | S77: 9791161903538
B78: 76 | C78: 노르웨이의 숲 | D78: - | E78: ノルウェイの森 | F78: 村上春樹 | G78: 양억관 | H78: 민음사 | I78: 1 | J78: ♥ | K78: 소설 | L78: 현대소설 | M78: 일본 | N78: 2019-06-04 | O78: 2017-08-07 | P78: 평택통신소 | Q78: 572 | R78: 591 | S78: 9788937434488
B79: 77 | C79: 나무 | D79: - | E79: L'Arbre des possibles | F79: Bernard Werber | G79: 이세욱 | H79: 열린책들 | I79: 2 | J79: ♥ | K79: 소설 | L79: 과학소설 | M79: 프랑스 | N79: 2019-06-04 | O79: 2003-06-30 | P79: 병영도서관 | Q79: 301 | R79: - | S79: 9788932905075
B80: 78 | C80: 공터에서 | D80: - | E80: - | F80: 김훈 | G80: - | H80: 해냄출판사 | I80: 1 | J80: X | K80: 소설 | L80: 현대소설 | M80: 한국 | N80: 2019-06-04 | O80: 2017-02-03 | P80: 병영도서관 | Q80: 360 | R80: 654 | S80: 9788965745877
B81: 79 | C81: 백년의 고독 | D81: - | E81: Cien años de soledad | F81: Gabriel García Márquez | G81: 조구호 | H81: 민음사 | I81: 1 | J81: - | K81: 소설 | L81: 고전 | M81: 콜롬비아 | N81: 2019-06-09 | O81: 2017-11-13 | P81: 병영도서관 | Q81: 600 | R81: 738 | S81: 9788937434761
B82: 80 | C82: 탈무드 | D82: - | E82: - | F82: ? | G82: ? | H82: ? | I82: 1 | J82: - | K82: 인문 | L82: 고전 | M82: 이스라엘 | N82: 2019-06-10 | O82: - | P82: 평택통신소 | Q82: - | R82: - | S82: -
B83: 81 | C83: 한글자 사전 | D83: 한 글자로 가늠하다! 보고 듣고 만지고 느끼는 생의 감촉 | E83: - | F83: 김소연 | G83: - | H83: 마음산책 | I83: 1 | J83: - | K83: 수필 | L83: 에세이 | M83: 한국 | N83: 2019-06-10 | O83: 2018-01-30 | P83: 평택통신소 | Q83: 400 | R83: 573 | S83: 9788960903623
B84: 82 | C84: 역사의 역사 | D84: History of Writing History | E84: - | F84: 유시민 | G84: - | H84: 돌베개 | I84: 1 | J84: ♥ | K84: 교양 | L84: 역사학 | M84: 한국 | N84: 2019-06-19 | O84: 2018-06-25 | P84: 병영도서관 | Q84: 340 | R84: 581 | S84: 9788971998557
B85: 83 | C85: 나무2 | D85: 베르베르 독자들이 쓴 | E85: - | F85: 강창모 | G85: - | H85: 열린책들 | I85: 2 | J85: ♥ | K85: 소설 | L85: 과학소설 | M85: 한국 | N85: 2019-06-20 | O85: 2004-02-20 | P85: 병영도서관 | Q85: 365 | R85: 530 | S85: 9788932905426
B86: 84 | C86: 혼나는 힘 | D86: 상처받지 말고 성장하라 | E86: 叱られる力 | F86: 阿川佐和子 | G86: 오화영 | H86: 흐름출판 | I86: 1 | J86: - | K86: 수필 | L86: 인간관계 | M86: 일본 | N86: 2019-06-20 | O86: 2015-02-25 | P86: 병영도서관 | Q86: 264 | R86: 426 | S86: 9788965961437
B87: 85 | C87: 경애의 마음 | D87: - | E87: - | F87: 김금희 | G87: - | H87: 창비 | I87: 1 | J87: ♥ | K87: 소설 | L87: 현대소설 | M87: 한국 | N87: 2019-06-21 | O87: 2018-06-15 | P87: 병영도서관 | Q87: 356 | R87: 422 | S87: 9788936434311
B88: 86 | C88: 도시는 무엇으로 사는가 | D88: 도시를 보는 열다섯 가지 인문적 시선 | E88: - | F88: 유현준 | G88: - | H88: 을유문화사 | I88: 1 | J88: ♥ | K88: 교양 | L88: 건축학 | M88: 한국 | N88: 2019-07-03 | O88: 2015-03-25 | P88: 병영도서관 | Q88: 391 | R88: 660 | S88: 9788932472959
B89: 87 | C89: 정해진 미래 | D89: 인구학이 말하는 10년 후 한국 그리고 생존전략 | E89: - | F89: 조영태 | G89: - | H89: 북스톤 | I89: 1 | J89: ♥ | K89: 인문 | L89: 미래학 | M89: 한국 | N89: 2019-07-04 | O89: 2016-09-30 | P89: 병영도서관 | Q89: 272 | R89: 479 | S89: 9791187289067
B90: 88 | C90: 총균쇠 | D90: 무기 병균 금속은 인류의 운명을 어떻게 바꿨는가 | E90: Guns, Germs, and Steel | F90: Jared Diamond | G90: 김진준 | H90: 문학사상 | I90: 1 | J90: ♥ | K90: 인문 | L90: 문화인류학 | M90: 미국 | N90: 2019-07-12 | O90: 2005-12-19 | P90: 병영도서관 | Q90: 751 | R90: - | S90: 9788970127248
B91: 89 | C91: 대화의 신 | D91: 토크계의 전설 래리 킹에게 배우는 말하기의 모든 것 | E91: How to Talk to Anyone, Anytime, Anywhere | F91: Larry King | G91: 강서일 | H91: 위즈덤하우스 | I91: 1 | J91: - | K91: 수필 | L91: 자기개발 | M91: 미국 | N91: 2019-07-12 | O91: 2015-01-27 | P91: 평택통신소 | Q91: 276 | R91: 456 | S91: 9788960867932
B92: 90 | C92: 야밤의 공대생 만화 | D92: - | E92: - | F92: 맹기완 | G92: - | H92: 뿌리와이파리 | I92: 1 | J92: ♥ | K92: 만화 | L92: 공학 | M92: 한국 | N92: 2019-07-15 | O92: 2017-07-07 | P92: 평택통신소 | Q92: 392 | R92: 538 | S92: 9788964620878
B93: 91 | C93: 시민의 교양 | D93: 지금 여기, 보통 사람들을 위한 현실 인문학 | E93: - | F93: 채사장 | G93: - | H93: whalebooks | I93: 1 | J93: ♥ | K93: 교양 | L93: 인문학 | M93: 한국 | N93: 2019-07-16 | O93: 2015-12-27 | P93: 평택통신소 | Q93: 348 | R93: 473 | S93: 9791195677108
B94: 92 | C94: 흐름을 꿰뚫는 세계사 독해 | D94: 복잡한 현대를 이해하기 위한 최소한의 역사 | E94: 世界史の極意 | F94: 佐藤優 | G94: 신정원 | H94: 역사의아침 | I94: 1 | J94: ♥ | K94: 교양 | L94: 역사학 | M94: 일본 | N94: 2019-07-16 | O94: 2016-05-31 | P94: 병영도서관 | Q94: 236 | R94: 390 | S94: 9788993119978
B95: 93 | C95: 그해, 역사가 바뀌다 | D95: 세계사에 새겨진 인류의 결정적 변곡점 | E95: - | F95: 주경철 | G95: - | H95: 21세기북스 | I95: 1 | J95: - | K95: 교양 | L95: 역사학 | M95: 한국 | N95: 2019-07-17 | O95: 2017-02-24 | P95: 병영도서관 | Q95: 300 | R95: 452 | S95: 9788950969097
B96: 94 | C96: 한글의 탄생 | D96: 문자라는 기적 | E96: ハングルの誕生 | F96: 野間秀樹 | G96: 김진아 김기연 박수진 | H96: 돌베개 | I96: 1 | J96: ♥ | K96: 인문 | L96: 언어학 | M96: 일본 | N96: 2019-07-18 | O96: 2011-10-09 | P96: 병영도서관 | Q96: 447 | R96: 731 | S96: 9788971994443
B97: 95 | C97: 신경 끄기의 기술 | D97: 인생에서 가장 중요한 것만 남기는 힘 | E97: The Subtle Art of Not Giving a F*ck | F97: Mark Manson | G97: 한재호 | H97: 갤리온 | I97: 1 | J97: ♥ | K97: 수필 | L97: 자기개발 | M97: 미국 | N97: 2019-07-19 | O97: 2017-10-27 | P97: 병영도서관 | Q97: 236 | R97: 380 | S97: 9788901219943
B98: 96 | C98: 문명과 수학 | D98: 세상을 움직이는 비밀 수와 기하 | E98: - | F98: EBS 문명과 수학 제작팀 | G98: - | H98: 민음인 | I98: 1 | J98: ♥ | K98: 교양 | L98: 수학 | M98: 한국 | N98: 2019-07-20 | O98: 2014-01-28 | P98: 병영도서관 | Q98: 244 | R98: 488 | S98: 9788960173538
B99: 97 | C99: 빅데이터가 만드는 제4차 산업혁명 | D99: 개인과 기업은 어떻게 대응할 것인가? | E99: - | F99: 김진호 | G99: - | H99: 북카라반 | I99: 1 | J99: ♥ | K99: 공학 | L99: 미래학 | M99: 한국 | N99: 2019-07-21 | O99: 2016-12-27 | P99: 병영도서관 | Q99: 324 | R99: 571 | S99: 9791160050110
B100: 98 | C100: 관계 수업 | D100: 사람 때문에 매일 괴로운 당신을 위한 | E100: Feeling Good Together | F100: David D. Burns | G100: 차익종 | H100: 흐름출판 | I100: 1 | J100: X | K100: 수필 | L100: 인간관계 | M100: 미국 | N100: 2019-07-22 | O100: 2015-02-06 | P100: 병영도서관 | Q100: 340 | R100: 588 | S100: 9788965961420
B101: 99 | C101: 모멸감 | D101: 굴욕과 존엄의 감정사회학 | E101: - | F101: 김찬호 | G101: - | H101: 문학과지성사 | I101: 1 | J101: ♥ | K101: 수필 | L101: 사회비평 | M101: 한국 | N101: 2019-07-24 | O101: 2014-03-01 | P101: 병영도서관 | Q101: 340 | R101: 474 | S101: 9788932025551
B102: 100 | C102: 낭만적 연애와 그 후의 일상 | D102: - | E102: The Course of Love | F102: Alain de Botton | G102: 김한영 | H102: 은행나무 | I102: 1 | J102: ♥ | K102: 소설 | L102: 현대소설 | M102: 영국 | N102: 2019-07-25 | O102: 2016-08-24 | P102: 병영도서관 | Q102: 300 | R102: 420 | S102: 9788956608846
B103: 101 | C103: 한일 통번역 노트 | D103: 잘못된 일본어 표현을 바로잡아주는 | E103: - | F103: 二日市壮 | G103: - | H103: 시사일본어사 | I103: 1 | J103: ♥ | K103: 실용 | L103: 언어학 | M103: 한국 | N103: 2019-07-25 | O103: 2018-08-30 | P103: 구매 | Q103: 208 | R103: 357 | S103: 9788940292426
B104: 102 | C104: 무엇을 버릴 것인가 | D104: 위기의 시대를 이기는 단 하나의 질문 | E104: - | F104: 유필화 | G104: - | H104: 비즈니스북스 | I104: 1 | J104: - | K104: 수필 | L104: 자기개발 | M104: 한국 | N104: 2019-07-26 | O104: 2016-03-15 | P104: 병영도서관 | Q104: 256 | R104: 484 | S104: 9791186805206
B105: 103 | C105: 화차 | D105: - | E105: 火車 | F105: 宮部みゆき | G105: 이영미 | H105: 문학동네 | I105: 1 | J105: ♥ | K105: 소설 | L105: 추리소설 | M105: 일본 | N105: 2019-07-27 | O105: 2012-02-20 | P105: 병영도서관 | Q105: 485 | R105: 642 | S105: 9788954617437
B106: 104 | C106: 태도의 품격 | D106: 최고의 조직은 왜 매너에 집중하는가 | E106: Excuse Me | F106: Rosanne Thomas | G106: 서유라 | H106: 다산북스 | I106: 1 | J106: ♥ | K106: 수필 | L106: 자기개발 | M106: 미국 | N106: 2019-07-28 | O106: 2018-04-27 | P106: 병영도서관 | Q106: 304 | R106: 482 | S106: 9791130616711
B107: 105 | C107: 내 머리 사용법 | D107: 카피라이터 정철의 | E107: - | F107: 정철 | G107: - | H107: 리더스북 | I107: 1 | J107: - | K107: 수필 | L107: 에세이 | M107: 한국 | N107: 2019-07-28 | O107: 2009-08-17 | P107: 병영도서관 | Q107: 368 | R107: - | S107: 9788901099323
B108: 106 | C108: 영화 글쓰기 강의 | D108: 영화를 깊이 읽고, 생각을 정리하는 방법 | E108: - | F108: 강유정 | G108: - | H108: 북바이북 | I108: 1 | J108: - | K108: 수필 | L108: 글쓰기 | M108: 한국 | N108: 2019-07-29 | O108: 2019-01-20 | P108: 병영독서활성화지원 | Q108: 157 | R108: 188 | S108: 9791185400877
B109: 107 | C109: 정글만리 1 정글만리 2 정글만리 3 | D109: - | E109: - | F109: 조정래 | G109: - | H109: 해냄 | I109: 1 | J109: X | K109: 소설 | L109: 현대소설 | M109: 한국 | N109: 2019-08-01 | O109: 2013-07-01 | P109: 병영도서관 | Q109: =412+408+420 -> 1240 | R109: =595+580+585 -> 1760 | S109: 9788965744023
B110: 108 | C110: 타이베이 일상산책 | D110: 새롭게 타이베이를 여행하는 감성 매뉴얼 15 | E110: - | F110: 김경하 | G110: - | H110: 알에이치코리아 | I110: 1 | J110: - | K110: 수필 | L110: 여행 | M110: 한국 | N110: 2019-08-01 | O110: 2014-09-22 | P110: 병영도서관 | Q110: 368 | R110: 610 | S110: 9788925553641
B111: 109 | C111: 예정된 전쟁 | D111: 미국과 중국의 패권 경쟁, 그리고 한반도의 운명 | E111: Destined for War | F111: Graham Allison | G111: 정혜윤 | H111: 세종서적 | I111: 1 | J111: - | K111: 사회 | L111: 외교학 | M111: 미국 | N111: 2019-08-02 | O111: 2018-01-22 | P111: 병영도서관 | Q111: 516 | R111: 708 | S111: 9788984076778
B112: 110 | C112: 돼지가 한마리도 죽지 않던 날 | D112: - | E112: A Day No Pigs Would Die | F112: Robert Newton Peck | G112: 김옥수 | H112: 사계절 | I112: 1 | J112: - | K112: 소설 | L112: 동화 | M112: 미국 | N112: 2019-08-04 | O112: 2017-08-18 | P112: 병영독서활성화지원 | Q112: 182 | R112: 304 | S112: 9791160943016
B113: 111 | C113: 태엽 감는 새 연대기 1 태엽 감는 새 연대기 2 태엽 감는 새 연대기 3 | D113: 도둑 까치 예언하는 새 새 잡이 사내 | E113: ねじまき鳥クロニクル 第1部 泥棒かささぎ編 ねじまき鳥クロニクル 第2部 予言する鳥編 ねじまき鳥クロニクル第3部 鳥刺し男編 | F113: 村上春樹 | G113: 김난주 | H113: 민음사 | I113: 1 | J113: - | K113: 소설 | L113: 현대소설 | M113: 일본 | N113: 2019-08-04 | O113: 2018-12-13 | P113: 구글플레이 | Q113: =360+408+584 -> 1352 | R113: =455+500+671 -> 1626 | S113: 9788937439339 9788937439346 9788937439353
B114: 112 | C114: 재레드 다이아몬드의 나와 세계 | D114: 인류의 내일에 관한 중대한 질문 | E114: Comparing Human Societies by Jared Diamond | F114: Jared Diamond | G114: 강주헌 | H114: 김영사 | I114: 1 | J114: ♥ | K114: 인문 | L114: 미래학 | M114: 미국 | N114: 2019-08-05 | O114: 2016-04-28 | P114: 병영도서관 | Q114: 232 | R114: 443 | S114: 9788934974376
B115: 113 | C115: 돈의 흐름으로 읽는 세계사 | D115: 돈은 어떻게 세계를 바꾸는가 | E115: お金の流れでわかる世界の歴史 | F115: 大村大次郎 | G115: 신정원 | H115: 위즈덤하우스 | I115: 1 | J115: ♥ | K115: 교양 | L115: 역사학 | M115: 일본 | N115: 2019-08-06 | O115: 2018-02-09 | P115: 병영도서관 | Q115: 272 | R115: 358 | S115: 9791162206249
B116: 114 | C116: 낯익은 타인들의 도시 | D116: - | E116: - | F116: 최인호 | G116: - | H116: 여백미디어 | I116: 1 | J116: ♥ | K116: 소설 | L116: 현대소설 | M116: 한국 | N116: 2019-08-07 | O116: 2011-05-23 | P116: 병영도서관 | Q116: 391 | R116: 448 | S116: 9788958660941
B117: 115 | C117: 아스라이 스러지다 | D117: - | E117: Long Gone | F117: Alafair Burke | G117: 전행선 | H117: 알에이치코리아 | I117: 1 | J117: ♥ | K117: 소설 | L117: 추리소설 | M117: 미국 | N117: 2019-08-09 | O117: 2012-10-05 | P117: 병영도서관 | Q117: 552 | R117: - | S117: 9788925548418
B118: 116 | C118: 너에게 주고픈 아름다운 시 | D118: - | E118: - | F118: 도종환, 나태주, 정호승, 윤동주, 김수영 | G118: - | H118: 북카라반 | I118: 1 | J118: ♥ | K118: 시 | L118: 시 | M118: 한국 | N118: 2019-08-09 | O118: 2019-01-14 | P118: 병영독서활성화지원 | Q118: 160 | R118: 252 | S118: 9791160050585
B119: 117 | C119: 저도 과학은 어렵습니다만 | D119: 털보 과학관장이 들려주는 세상물정의 과학 | E119: - | F119: 이정모 | G119: - | H119: 바틀비 | I119: 1 | J119: ♥ | K119: 교양 | L119: 과학 | M119: 한국 | N119: 2019-08-10 | O119: 2018-01-05 | P119: 병영도서관 | Q119: 288 | R119: 365 | S119: 9791196250515
B120: 118 | C120: 운다고 달라지는 일은 아무것도 없겠지만 | D120: - | E120: - | F120: 박준 | G120: - | H120: 난다 | I120: 1 | J120: - | K120: 수필 | L120: 에세이 | M120: 한국 | N120: 2019-08-11 | O120: 2017-07-01 | P120: 병영도서관 | Q120: 192 | R120: 288 | S120: 9791196075170
B121: 119 | C121: 렘브란트의 유령 | D121: - | E121: Rembrandt's Ghost | F121: Paul Christopher | G121: 하현길 | H121: 중앙북스 | I121: 1 | J121: X | K121: 소설 | L121: 추리소설 | M121: 캐나다 | N121: 2019-08-12 | O121: 2008-04-25 | P121: 병영도서관 | Q121: 422 | R121: - | S121: 9788961884044
B122: 120 | C122: 봉제인형 살인사건 | D122: - | E122: Ragdoll | F122: Daniel Cole | G122: 유혜인 | H122: 북플라자 | I122: 1 | J122: X | K122: 소설 | L122: 추리소설 | M122: 영국 | N122: 2019-08-14 | O122: 2017-10-20 | P122: 병영도서관 | Q122: 400 | R122: 467 | S122: 9788998274931
B123: 121 | C123: 대학생의 착각 | D123: 또 다른 시작을 끝으로 생각하는 | E123: - | F123: 양희승 | G123: - | H123: 피앤씨미디어 | I123: 1 | J123: - | K123: 수필 | L123: 자기개발 | M123: 한국 | N123: 2019-08-15 | O123: 2016-01-15 | P123: 병영도서관 | Q123: 246 | R123: 545 | S123: 9791157302475
B124: 122 | C124: 검사내전 | D124: 생활형 검사의 사람 공부, 세상 공부 | E124: - | F124: 김웅 | G124: - | H124: 부키 | I124: 1 | J124: ♥ | K124: 수필 | L124: 사회학 | M124: 한국 | N124: 2019-08-17 | O124: 2018-01-19 | P124: 병영도서관 | Q124: 384 | R124: 532 | S124: 9788960516175
B125: 123 | C125: 앵무새 죽이기 | D125: - | E125: To Kill a Mockingbird | F125: Nelle Harper Lee | G125: 김욱동 | H125: 열린책들 | I125: 1 | J125: - | K125: 소설 | L125: 고전 | M125: 미국 | N125: 2019-08-17 | O125: 2015-06-30 | P125: 병영도서관 | Q125: 544 | R125: 545 | S125: 9788932917207
B126: 124 | C126: 만약 고교야구 여자 매니저가 피터 드러커를 읽는다면 | D126: - | E126: もし高校野球の女子マネージャーがドラッカーの『マネジメント』を読んだら | F126: 岩崎夏海 | G126: 권일영 | H126: 동아일보사 | I126: 1 | J126: ♥ | K126: 소설 | L126: 현대소설 | M126: 일본 | N126: 2019-08-25 | O126: 2011-04-27 | P126: 병영도서관 | Q126: 264 | R126: 370 | S126: 9788970908489
B127: 125 | C127: 뉴욕의 고양이들 | D127: 세상에서 가장 쿨한 고양이들을 인터뷰하다 | E127: Felines of New York | F127: Jim Tews | G127: 엘렌 심 | H127: arte | I127: 1 | J127: - | K127: 수필 | L127: 에세이 | M127: 미국 | N127: 2019-08-25 | O127: 2016-08-29 | P127: 병영도서관 | Q127: 240 | R127: 409 | S127: 9788950966126
B128: 126 | C128: 개를 훔치는 가장 완벽한 방법 | D128: - | E128: How to Steal a Dog | F128: Barbara O'conno | G128: 신선해 | H128: 놀 | I128: 1 | J128: - | K128: 소설 | L128: 현대소설 | M128: 미국 | N128: 2019-08-26 | O128: 2014-11-10 | P128: 병영도서관 | Q128: 272 | R128: 355 | S128: 9791130604190
B129: 127 | C129: EBS 다큐멘터리 동과 서 | D129: 서로 다른 생각의 기원 | E129: - | F129: EBS 동과서 제작팀, 김명진 | G129: - | H129: 지식채널 | I129: 1 | J129: ♥ | K129: 교양 | L129: 문화인류학 | M129: 한국 | N129: 2019-08-26 | O129: 2012-10-30 | P129: 병영도서관 | Q129: 288 | R129: 470 | S129: 9788952767318
B130: 128 | C130: 무엇이 되지 않더라도 | D130: - | E130: - | F130: 김동영 | G130: - | H130: arte | I130: 1 | J130: - | K130: 수필 | L130: 에세이 | M130: 한국 | N130: 2019-08-27 | O130: 2017-12-18 | P130: 병영독서활성화지원 | Q130: 284 | R130: 376 | S130: 9788950973063
B131: 129 | C131: 페러그린과 이상한 아이들의 집 | D131: 폴라 데이 앤 나이트 Polar Day & Night | E131: Miss Peregrine's Home for Peculiar Children | F131: Ransom Riggs | G131: 이진 | H131: 폴라북스 | I131: 1 | J131: X | K131: 소설 | L131: 현대소설 | M131: 미국 | N131: 2019-08-27 | O131: 2011-11-30 | P131: 병영도서관 | Q131: 432 | R131: 525 | S131: 9788993094558
B132: 130 | C132: 너무 맛있어서 잠 못드는 세계지리 | D132: 잠 못 드는 시리즈 | E132: Delicious Geography | F132: Gary Fuller, T.M. Reddekopp | G132: 윤승희 | H132: 생각의길 | I132: 1 | J132: - | K132: 교양 | L132: 지리학 | M132: 미국 | N132: 2019-08-28 | O132: 2017-09-22 | P132: 병영독서활성화지원 | Q132: 280 | R132: 509 | S132: 9788965134770
B133: =IF(C133="","",ROW(B131)) -> 131 | C133: 여행자의 미술관 | D133: 길 위에서 만난 여행 같은 그림들 | E133: - | F133: 박준 | G133: - | H133: 어바웃어북 | I133: 1 | J133: - | K133: 수필 | L133: 여행 | M133: 한국 | N133: 2019-08-29 | O133: 2016-10-25 | P133: 병영도서관 | Q133: 360 | R133: 587 | S133: 9791187150138
B134: 132 | C134: 아가씨와 밤 | D134: - | E134: La Jeune fille et la nuit | F134: Guillaume Musso | G134: 양영란 | H134: 밝은세상 | I134: 1 | J134: ♥ | K134: 소설 | L134: 현대소설 | M134: 프랑스 | N134: 2019-08-29 | O134: 2018-11-26 | P134: 병영도서관 | Q134: 403 | R134: 534 | S134: 9788984373617
B135: 133 | C135: 호밀밭의 파수꾼 | D135: 민음사 세계문학전집 47 | E135: The Catcher in the Rye | F135: Jerome David Salinger | G135: 공경희 | H135: 민음사 | I135: 1 | J135: - | K135: 소설 | L135: 고전 | M135: 미국 | N135: 2019-08-30 | O135: 2001-05-30 | P135: 병영도서관 | Q135: 288 | R135: 411 | S135: 9788937460470
B136: 134 | C136: 세상에 읽지 못할 책은 없다 | D136: 평범한 대학생을 메이지대 교수로 만든 독서법 | E136: 本をサクサク読む技術 | F136: 齋藤孝 | G136: 임해성 | H136: 21세기북스 | I136: 1 | J136: ♥ | K136: 수필 | L136: 독서 | M136: 일본 | N136: 2019-08-30 | O136: 2016-05-06 | P136: 병영도서관 | Q136: 208 | R136: 382 | S136: 9788950962630
B137: 135 | C137: 금요일에 읽는 가족의 시 | D137: - | E137: - | F137: 김태훈 | G137: - | H137: arte | I137: 1 | J137: - | K137: 시 | L137: 현대시 | M137: 한국 | N137: 2019-08-30 | O137: 2016-03-21 | P137: 병영도서관 | Q137: 304 | R137: 485 | S137: 9788950963484
B138: 136 | C138: 당신의 꿈은 무엇입니까? | D138: 김수영이 만난 25개국 365개의 꿈 | E138: - | F138: 김수영 | G138: - | H138: 웅진지식하우스 | I138: 1 | J138: - | K138: 수필 | L138: 에세이 | M138: 한국 | N138: 2019-08-31 | O138: 2012-09-19 | P138: 병영도서관 | Q138: 460 | R138: 760 | S138: 9788901150796
B139: 137 | C139: 우동한그릇 | D139: - | E139: 一杯のかけそば | F139: 栗良平 | G139: 최영혁 | H139: 청조사 | I139: 1 | J139: - | K139: 소설 | L139: 고전 | M139: 일본 | N139: 2019-08-31 | O139: 2010-05-20 | P139: 병영도서관 | Q139: 132 | R139: 338 | S139: 9788973223121
B140: 138 | C140: 시간을 달리는 소녀 | D140: - | E140: 時をかける少女 | F140: 筒井康隆 | G140: 김영주 | H140: 북스토리 | I140: 1 | J140: - | K140: 소설 | L140: 고전 | M140: 일본 | N140: 2019-08-31 | O140: 2007-06-07 | P140: 병영도서관 | Q140: 282 | R140: 442 | S140: 9788989675761
B141: 139 | C141: 가상화폐 100문 100답 | D141: 초보자도 알기 쉬운 | E141: - | F141: 박문식 | G141: - | H141: 머니플러스 | I141: 1 | J141: - | K141: 교양 | L141: 경제학 | M141: 한국 | N141: 2019-09-01 | O141: 2018-01-26 | P141: 병영도서관 | Q141: 352 | R141: 629 | S141: 9791187314349
B142: 140 | C142: 위대한 개츠비 | D142: 민음사 세계문학전집 75 | E142: The Great Gatsby | F142: Francis Scott Key Fitzgerald | G142: 김욱동 | H142: 민음사 | I142: 1 | J142: - | K142: 소설 | L142: 고전 | M142: 미국 | N142: 2019-09-03 | O142: 2010-12-08 | P142: 병영도서관 | Q142: 283 | R142: 392 | S142: 9788937460753
B143: 141 | C143: 무진기행 | D143: 민음사 세계문학전집 149 | E143: - | F143: 김승옥 | G143: - | H143: 민음사 | I143: 1 | J143: - | K143: 소설 | L143: 고전 | M143: 한국 | N143: 2019-09-04 | O143: 2007-08-03 | P143: 병영도서관 | Q143: 405 | R143: 527 | S143: 9788937461491
B144: 142 | C144: 탐정영화 | D144: - | E144: 探偵映画 | F144: 我孫子武丸 | G144: 권일영 | H144: 포레 | I144: 1 | J144: X | K144: 소설 | L144: 추리소설 | M144: 일본 | N144: 2019-09-04 | O144: 2012-08-30 | P144: 가엽산통신소 | Q144: 344 | R144: 380 | S144: 9788954618953
B145: 143 | C145: 노르웨이 타임 | D145: 시간의 숲속으로 사라진 유년의 뒤안길 | E145: Tenke sjæl | F145: Trond-Viggo Torgersen | G145: 손화수 | H145: 21세기북스 | I145: 1 | J145: - | K145: 수필 | L145: 에세이 | M145: 노르웨이 | N145: 2019-09-04 | O145: 2010-04-02 | P145: 가엽산통신소 | Q145: 172 | R145: 327 | S145: 9788950922979
B146: 144 | C146: 약간의 거리를 둔다 | D146: - | E146: 人間の分際 | F146: 曽野綾子 | G146: 김욱 | H146: 책읽는고양이 | I146: 1 | J146: X | K146: 수필 | L146: 에세이 | M146: 일본 | N146: 2019-09-04 | O146: 2016-10-20 | P146: 가엽산통신소 | Q146: 160 | R146: 166 | S146: 9791186274156
B147: 145 | C147: 왜 세계의 절반은 굶주리는가 | D147: - | E147: La Faim dans le monde expliquée à mon fils | F147: Jean Ziegler | G147: 유영미 | H147: 갈라파고스 | I147: 1 | J147: X | K147: 교양 | L147: 사회학 | M147: 스위스 | N147: 2019-09-05 | O147: 2007-03-12 | P147: 가엽산통신소 | Q147: 201 | R147: 280 | S147: 9788990809179
B148: 146 | C148: 죽고 싶지만 떡볶이는 먹고 싶어 | D148: - | E148: - | F148: 백세희 | G148: - | H148: 흔 | I148: 1 | J148: X | K148: 수필 | L148: 에세이 | M148: 한국 | N148: 2019-09-07 | O148: 2018-06-20 | P148: 가엽산통신소 | Q148: 208 | R148: 292 | S148: 9791196394509
B149: 147 | C149: 세계사를 바꾼 10가지 약 | D149: 세계사를 바꾼 시리즈 | E149: 世界史を変えた薬 | F149: 佐藤健太郎 | G149: 서수지 | H149: 사람과나무사이 | I149: 1 | J149: ♥ | K149: 교양 | L149: 의학 | M149: 일본 | N149: 2019-09-07 | O149: 2018-05-10 | P149: 가엽산통신소 | Q149: 251 | R149: 411 | S149: 9791188635108
B150: 148 | C150: 남아 있는 나날 | D150: 민음사 모던 클래식 34 | E150: The Remains of the Day | F150: Kazuo Ishiguro | G150: 송은경 | H150: 민음사 | I150: 1 | J150: ♥ | K150: 소설 | L150: 고전 | M150: 영국 | N150: 2019-09-08 | O150: 2010-09-17 | P150: 가엽산통신소 | Q150: 314 | R150: 408 | S150: 9788937490347
B151: 149 | C151: 언어의 온도 | D151: - | E151: - | F151: 이기주 | G151: - | H151: 말글터 | I151: 1 | J151: - | K151: 수필 | L151: 에세이 | M151: 한국 | N151: 2019-09-09 | O151: 2016-08-19 | P151: 가엽산통신소 | Q151: 308 | R151: 308 | S151: 9791195522125
B152: 150 | C152: 예민함 내려놓기 | D152: 남보다 예민해서 힘든 사람들을 위한 내 안의 바늘 길들이기 | E152: 過敏で傷つきやすい人たち | F152: 岡田尊司 | G152: 홍성민 | H152: 어크로스 | I152: 1 | J152: - | K152: 교양 | L152: 심리학 | M152: 일본 | N152: 2019-09-09 | O152: 2018-08-16 | P152: 가엽산통신소 | Q152: 232 | R152: 324 | S152: 9791160560541
B153: 151 | C153: 말이 인격이다 | D153: 품격을 높이는 우리말 예절 | E153: - | F153: 조항범 | G153: - | H153: 예담 | I153: 1 | J153: - | K153: 교양 | L153: 언어학 | M153: 한국 | N153: 2019-09-11 | O153: 2009-01-09 | P153: 가엽산통신소 | Q153: 268 | R153: 509 | S153: 9788959133604
B154: 152 | C154: 아몬드 | D154: 제10회 창비 청소년문학상 수상작 | E154: - | F154: 손원평 | G154: - | H154: 창비 | I154: 1 | J154: ♥ | K154: 소설 | L154: 현대소설 | M154: 한국 | N154: 2019-09-11 | O154: 2017-03-31 | P154: 병영도서관 | Q154: 264 | R154: 387 | S154: 9788936434267
B155: 153 | C155: 설국 | D155: 민음사 세계문학전집 61 | E155: 雪国 | F155: 川端康成 | G155: 유숙자 | H155: 민음사 | I155: 1 | J155: - | K155: 소설 | L155: 고전 | M155: 일본 | N155: 2019-09-12 | O155: 2002-01-28 | P155: 병영도서관 | Q155: 163 | R155: 294 | S155: 9788937460616
B156: 154 | C156: 90년생이 온다 | D156: 간단함, 병맛, 솔직함으로 기업의 흥망성쇠를 좌우하는 | E156: - | F156: 임홍택 | G156: - | H156: 웨일북 | I156: 1 | J156: ♥ | K156: 교양 | L156: 사회학 | M156: 한국 | N156: 2019-09-12 | O156: 2018-11-16 | P156: 병영도서관 | Q156: 336 | R156: 444 | S156: 9791188248674
B157: 155 | C157: 가까운 러시아 다가온 유라시아 | D157: - | E157: - | F157: 정성희 | G157: - | H157: 생각의길 | I157: 1 | J157: - | K157: 사회 | L157: 외교학 | M157: 한국 | N157: 2019-09-13 | O157: 2017-02-27 | P157: 병영도서관 | Q157: 420 | R157: 726 | S157: 9788965133933
B158: 156 | C158: 종의 기원 | D158: - | E158: - | F158: 정유정 | G158: - | H158: 은행나무 | I158: 1 | J158: ♥ | K158: 소설 | L158: 현대소설 | M158: 한국 | N158: 2019-09-14 | O158: 2016-05-14 | P158: 병영도서관 | Q158: 384 | R158: 520 | S158: 9788956609959
B159: 157 | C159: 펭귄뉴스 | D159: - | E159: - | F159: 김중혁 | G159: - | H159: 문학과지성사 | I159: 1 | J159: - | K159: 소설 | L159: 현대소설 | M159: 한국 | N159: 2019-09-15 | O159: 2006-03-10 | P159: 병영도서관 | Q159: 377 | R159: 528 | S159: 9788932016757
B160: 158 | C160: 인페르노 Ⅰ 인페르노 Ⅱ | D160: 로버트 랭던 시리즈 | E160: Inferno | F160: Dan Brown | G160: 안종설 | H160: 문학수첩 | I160: 1 | J160: ♥ | K160: 소설 | L160: 현대소설 | M160: 미국 | N160: 2019-09-15 | O160: 2013-07-04 | P160: 병영도서관 | Q160: =376+376 -> 752 | R160: =505+510 -> 1015 | S160: 9788983924872 9788983924889
B161: 159 | C161: 오 해피 데이 | D161: - | E161: 家日和 | F161: 奥田英朗 | G161: 김난주 | H161: 재인 | I161: 1 | J161: - | K161: 소설 | L161: 현대소설 | M161: 일본 | N161: 2019-09-16 | O161: 2009-10-16 | P161: 병영도서관 | Q161: 276 | R161: 386 | S161: 9788990982346
B162: 160 | C162: 무의미의 축제 | D162: - | E162: La Fête de l'insignifiance | F162: Milan Kundera | G162: 방미경 | H162: 민음사 | I162: 1 | J162: - | K162: 소설 | L162: 현대소설 | M162: 체코 | N162: 2019-09-16 | O162: 2014-07-23 | P162: 병영도서관 | Q162: 152 | R162: 320 | S162: 9788937489327
B163: 161 | C163: 군을 말하다 | D163: 군대 60번 간 사나이, 국방부·육군·해군·해병대·공군을 읽고 보는 사진 에세이 | E163: - | F163: 양낙규 | G163: - | H163: 이케이북 | I163: 1 | J163: - | K163: 수필 | L163: 에세이 | M163: 한국 | N163: 2019-09-16 | O163: 2016-09-23 | P163: 병영도서관 | Q163: 524 | R163: 681 | S163: 9791186222096
B164: 162 | C164: 빨간 장화 | D164: - | E164: 赤い長靴 | F164: 江國香織 | G164: 신유희 | H164: 태일소담출판사 | I164: 1 | J164: - | K164: 소설 | L164: 현대소설 | M164: 일본 | N164: 2019-09-17 | O164: 2010-03-25 | P164: 병영도서관 | Q164: 232 | R164: 325 | S164: 9788973815777
B165: 163 | C165: 7월 24일 거리 | D165: - | E165: 7月24日通り | F165: 吉田修一 | G165: 김난주 | H165: 재인 | I165: 1 | J165: - | K165: 소설 | L165: 현대소설 | M165: 일본 | N165: 2019-09-18 | O165: 2005-09-06 | P165: 병영도서관 | Q165: 192 | R165: 269 | S165: 9788990982131
B166: 164 | C166: 너는 기억 못하겠지만 | D166: - | E166: 時給三〇〇円の死神 | F166: 藤まる | G166: 김은모 | H166: arte | I166: 1 | J166: - | K166: 소설 | L166: 현대소설 | M166: 일본 | N166: 2019-09-19 | O166: 2019-01-16 | P166: 병영도서관 | Q166: 368 | R166: 390 | S166: 9788950978976
B167: 165 | C167: 라틴어 수업 | D167: 지적이고 아름다운 삶을 위한 | E167: - | F167: 한동일 | G167: - | H167: 흐름출판 | I167: 1 | J167: - | K167: 교양 | L167: 언어학 | M167: 한국 | N167: 2019-09-24 | O167: 2017-06-30 | P167: 병영도서관 | Q167: 312 | R167: 524 | S167: 9788965962205
B168: 166 | C168: 우아한 거짓말 | D168: 창비청소년문학 22 | E168: - | F168: 김려령 | G168: - | H168: 창비 | I168: 1 | J168: ♥ | K168: 소설 | L168: 현대소설 | M168: 한국 | N168: 2019-09-25 | O168: 2009-11-20 | P168: 병영도서관 | Q168: 228 | R168: 280 | S168: 9788936456221
B169: 167 | C169: 일본 비즈니스 매너 | D169: - | E169: - | F169: 하야마 마사코 | G169: - | H169: 제이앤씨 | I169: 1 | J169: - | K169: 실용 | L169: 일본학 | M169: 한국 | N169: 2019-09-25 | O169: 2008-12-31 | P169: 구매 | Q169: 215 | R169: 301 | S169: 9788956686691
B170: 168 | C170: 말리와 나 | D170: 세계 최악의 말썰꾸러기 개와 함께한 삶 그리고 사랑 | E170: Marley & Me | F170: John Grogan | G170: 이창희 | H170: 세종서적 | I170: 1 | J170: - | K170: 수필 | L170: 에세이 | M170: 미국 | N170: 2019-09-26 | O170: 2006-09-05 | P170: 병영도서관 | Q170: 397 | R170: 516 | S170: 9788984072237
B171: 169 | C171: 메모 습관의 힘 | D171: 하루 5분 나를 성장시키는 | E171: - | F171: 신정철 | G171: - | H171: 토네이도 | I171: 1 | J171: - | K171: 수필 | L171: 자기개발 | M171: 한국 | N171: 2019-09-26 | O171: 2015-11-25 | P171: 평택통신소 | Q171: 352 | R171: 585 | S171: 9791158510251
B172: 170 | C172: 행복의 기원 | D172: 인간의 행복은 어디서 오는가 | E172: - | F172: 서은국 | G172: - | H172: 21세기북스 | I172: 1 | J172: ♥ | K172: 교양 | L172: 철학 | M172: 한국 | N172: 2019-09-27 | O172: 2014-05-22 | P172: 평택통신소 | Q172: 208 | R172: 440 | S172: 9788950955779
B173: 171 | C173: 철학의 힘 | D173: 만족 없는 삶에 던지는 21가지 질문 | E173: - | F173: 김형철 | G173: - | H173: 위즈덤하우스 | I173: 1 | J173: - | K173: 교양 | L173: 철학 | M173: 한국 | N173: 2019-09-27 | O173: 2015-04-20 | P173: 평택통신소 | Q173: 256 | R173: 480 | S173: 9788960868106
B174: 172 | C174: 피로사회 | D174: - | E174: Müdigkeitsgesellschaft | F174: 한병철 | G174: 김태환 | H174: 문학과지성사 | I174: 1 | J174: - | K174: 교양 | L174: 철학 | M174: 독일 | N174: 2019-09-28 | O174: 2012-03-05 | P174: 평택통신소 | Q174: 128 | R174: 160 | S174: 9788932022888
B175: 173 | C175: 인문학 습관 | D175: 나만의 업業을 만들어가는 인문학 트레이닝북 | E175: - | F175: 윤소정 | G175: - | H175: 다산초당 | I175: 1 | J175: X | K175: 교양 | L175: 인문학 | M175: 한국 | N175: 2019-09-28 | O175: 2015-10-26 | P175: 평택통신소 | Q175: 340 | R175: 580 | S175: 9791130606354
B176: 174 | C176: 셰익스피어 4대 비극 | D176: - | E176: Four Great Tragedies | F176: William Shakespeare | G176: 이수광 | H176: 아름다운날 | I176: 1 | J176: ♥ | K176: 소설 | L176: 희곡 | M176: 영국 | N176: 2019-09-29 | O176: 2006-09-30 | P176: 평택통신소 | Q176: 544 | R176: 979 | S176: 9788989354727
B177: 175 | C177: 천 개의 찬란한 태양 | D177: - | E177: A Thousand Splendid Suns | F177: Khaled Hosseini | G177: 왕은철 | H177: 현대문학 | I177: 1 | J177: ♥ | K177: 소설 | L177: 현대소설 | M177: 미국 | N177: 2019-09-30 | O177: 2007-11-25 | P177: 평택통신소 | Q177: 574 | R177: 742 | S177: 9788972754015
B178: 176 | C178: 파이 이야기 | D178: - | E178: Life of Pi | F178: Yann Martel | G178: 공경희 | H178: 작가정신 | I178: 1 | J178: - | K178: 소설 | L178: 현대소설 | M178: 캐나다 | N178: 2019-09-30 | O178: 2004-11-05 | P178: 병영도서관 | Q178: 400 | R178: 532 | S178: 9788972882435
B179: 177 | C179: 오만과 편견 | D179: 민음사 세계문학전집 88 | E179: Pride and Prejudice | F179: Jane Austen | G179: 전승희 | H179: 민음사 | I179: 1 | J179: - | K179: 소설 | L179: 고전 | M179: 영국 | N179: 2019-10-06 | O179: 2003-09-20 | P179: 병영도서관 | Q179: 559 | R179: 708 | S179: 9788937460883
B180: 178 | C180: 내 옆에 있는 사람 | D180: - | E180: - | F180: 이병률 | G180: - | H180: 달 | I180: 1 | J180: - | K180: 수필 | L180: 에세이 | M180: 한국 | N180: 2019-10-07 | O180: 2015-07-01 | P180: 병영도서관 | Q180: 312 | R180: 380 | S180: 9791158160081
B181: 179 | C181: 무지개 곶의 찻집 | D181: - | E181: 虹の岬の喫茶店 | F181: 森沢明夫 | G181: 이수미 | H181: 샘터사 | I181: 1 | J181: - | K181: 소설 | L181: 현대소설 | M181: 일본 | N181: 2019-10-07 | O181: 2012-05-29 | P181: 병영도서관 | Q181: 304 | R181: 345 | S181: 9788946418233
B182: 180 | C182: 독방 | D182: 최정예 전투기 조종사의 추락, 포로 생활 그리고 귀환 | E182: Solitary | F182: Giora Romm | G182: 전용우 | H182: 이담북스 | I182: 1 | J182: - | K182: 수필 | L182: 군사학 | M182: 이스라엘 | N182: 2019-10-07 | O182: 2017-05-09 | P182: 병영도서관 | Q182: 320 | R182: 415 | S182: 9788926878781
B183: 181 | C183: 마션 | D183: 어느 괴짜 과학자의 화성판 어드벤처 생존기 | E183: The Martian | F183: Andy Weir | G183: 박아람 | H183: 알에이치코리아 | I183: 1 | J183: ♥ | K183: 소설 | L183: 과학소설 | M183: 미국 | N183: 2019-10-08 | O183: 2015-07-24 | P183: 병영도서관 | Q183: 600 | R183: 675 | S183: 9788925556789
B184: 182 | C184: 내 옆에는 왜 이상한 사람이 많을까? | D184: 재수 없고 짜증 나는 12가지 진상형 인간 대응법 | E184: Woran erkennt man ein Arschloch? | F184: Monika Wittblum, Sandra Lüpkes | G184: 서유리 | H184: 동양북스 | I184: 1 | J184: - | K184: 수필 | L184: 인간관계 | M184: 독일 | N184: 2019-10-17 | O184: 2014-06-30 | P184: 병영도서관 | Q184: 288 | R184: 405 | S184: 9791157030101
B185: 183 | C185: 유랑가족 세이타로 | D185: - | E185: 母恋旅烏 | F185: 荻原浩 | G185: 김소영 | H185: 한즈미디어 | I185: 1 | J185: - | K185: 소설 | L185: 현대소설 | M185: 일본 | N185: 2019-10-22 | O185: 2008-03-25 | P185: 병영도서관 | Q185: 431 | R185: 560 | S185: 9788959751211
B186: 184 | C186: 정크노트 | D186: - | E186: - | F186: 명지현 | G186: - | H186: 문학동네 | I186: 1 | J186: - | K186: 소설 | L186: 현대소설 | M186: 한국 | N186: 2019-10-23 | O186: 2009/008/26 | P186: 병영도서관 | Q186: 270 | R186: 351 | S186: 9788954608695
B187: 185 | C187: 파이프라인 우화 | D187: 지속적인 잉여 소득의 원천이 되는 파이프라인을 구축하는 비결! | E187: The Parable of the Pipeline | F187: Burke Hedges | G187: 박옥 | H187: 나라 | I187: 1 | J187: - | K187: 수필 | L187: 자기개발 | M187: 미국 | N187: 2019-10-29 | O187: 2005-05-03 | P187: 병영도서관 | Q187: 183 | R187: 165 | S187: 9788989806189
B188: 186 | C188: 부자의 그릇 | D188: 돈을 다루는 능력을 키우는 법 | E188: 富者の遺言 | F188: 泉正人 | G188: 김윤수 | H188: 다산북스 | I188: 1 | J188: - | K188: 교양 | L188: 경제학 | M188: 일본 | N188: 2019-10-29 | O188: 2015-03-02 | P188: 병영도서관 | Q188: 224 | R188: 365 | S188: 9791130604787
B189: 187 | C189: 이 공식을 모르면 PT하지 마라 | D189: P=OR² | E189: - | F189: 이용찬 | G189: - | H189: 마일스톤 | I189: 1 | J189: - | K189: 수필 | L189: 에세이 | M189: 한국 | N189: 2019-10-29 | O189: 2018-10-30 | P189: 팽성 이동도서관 | Q189: 235 | R189: 314 | S189: 9791160574401
B190: 188 | C190: 사피엔스 | D190: 유인원에서 사이보그까지, 인간 역사의 대담하고 위대한 질문 | E190: קיצור תולדות האנושות | F190: יובל נח הררי | G190: 조현욱 | H190: 김영사 | I190: 1 | J190: ♥ | K190: 인문 | L190: 문화인류학 | M190: 이스라엘 | N190: 2019-11-12 | O190: 2015-11-23 | P190: 병영도서관 | Q190: 636 | R190: 966 | S190: 9788934972464
B191: 189 | C191: 심리계좌 | D191: 돈에 관한 다섯 가지 착각 | E191: - | F191: 이지영 | G191: - | H191: 살림Biz | I191: 1 | J191: - | K191: 교양 | L191: 경제학 | M191: 한국 | N191: 2019-11-12 | O191: 2012-12-07 | P191: 병영도서관 | Q191: 224 | R191: 430 | S191: 9788952222374
B192: 190 | C192: 레버리지 | D192: 자본주의 속에 숨겨진 부의 비밀 | E192: Life Leverage | F192: Rob Moore | G192: 김유미 | H192: 다산북스 | I192: 1 | J192: - | K192: 수필 | L192: 자기개발 | M192: 영국 | N192: 2019-11-12 | O192: 2017-05-08 | P192: 병영도서관 | Q192: 252 | R192: 381 | S192: 9791130612249
B193: 191 | C193: 호모 데우스 | D193: 미래의 역사 | E193: ההיסטוריה של המחר | F193: יובל נח הררי | G193: 김명주 | H193: 김영사 | I193: 1 | J193: ♥ | K193: 인문 | L193: 미래학 | M193: 이스라엘 | N193: 2019-11-14 | O193: 2017-05-15 | P193: 병영도서관 | Q193: 630 | R193: 989 | S193: 9788934977841
B194: 192 | C194: 시 읽는 밤 : 시밤 | D194: - | E194: - | F194: 하상욱 | G194: - | H194: 위즈덤하우스 | I194: 1 | J194: - | K194: 시 | L194: 현대시 | M194: 한국 | N194: 2019-11-15 | O194: 2015-09-18 | P194: 평택통신소 | Q194: 236 | R194: 426 | S194: 9788959139668
B195: 193 | C195: 만화로 배우는 공룡의 생태 | D195: 한빛비즈 교양툰 3 | E195: - | F195: 갈로아 | G195: - | H195: 한빛비즈 | I195: 1 | J195: - | K195: 만화 | L195: 생물학 | M195: 한국 | N195: 2019-11-15 | O195: 2019-06-24 | P195: 평택통신소 | Q195: 304 | R195: 489 | S195: 9791157843404
B196: 194 | C196: 쾌락독서 | D196: 개인주의자 문유석의 유쾌한 책 읽기 | E196: - | F196: 문유석 | G196: - | H196: 문학동네 | I196: 1 | J196: - | K196: 수필 | L196: 독서 | M196: 한국 | N196: 2019-11-15 | O196: 2018-12-12 | P196: 평택통신소 | Q196: 264 | R196: 386 | S196: 9788954653848
B197: =IF(C197="","",ROW(B195)) -> 195 | C197: 독서는 절대 나를 배신하지 않는다 | D197: 서른 살 빈털터리 대학원생을 메이지대 교수로 만든 공부법 | E197: 大人のための読書の全技術 | F197: 齋藤孝 | G197: 김효진 | H197: 걷는나무 | I197: 1 | J197: - | K197: 수필 | L197: 독서 | M197: 일본 | N197: 2019-11-18 | O197: 2015-06-03 | P197: 평택통신소 | Q197: 205 | R197: 275 | S197: 9788901204208
B198: 196 | C198: 지정학에 관한 모든 것 | D198: - | E198: Le grand livre de la géopolitique | F198: Pascal Boniface | G198: 정상필 | H198: 레디셋고 | I198: 1 | J198: - | K198: 사회 | L198: 외교학 | M198: 프랑스 | N198: 2019-11-23 | O198: 2016-07-13 | P198: 병영도서관 | Q198: 396 | R198: 635 | S198: 9788997729814
B199: 197 | C199: 평균의 종말 | D199: 평균이라는 허상은 어떻게 교육을 속여왔나 | E199: The End of Average | F199: Larry Todd Rose | G199: 정미나 | H199: 21세기북스 | I199: 1 | J199: - | K199: 사회 | L199: 교육학 | M199: 미국 | N199: 2019-11-24 | O199: 2018-03-27 | P199: 병영도서관 | Q199: 324 | R199: 579 | S199: 9788950963613
B200: 198 | C200: 아주 사적인 시간 | D200: - | E200: 私的生活 | F200: 田辺聖子 | G200: 김경인 | H200: 북스토리 | I200: 1 | J200: - | K200: 소설 | L200: 현대소설 | M200: 일본 | N200: 2019-11-25 | O200: 2007-01-24 | P200: 병영도서관 | Q200: 359 | R200: 503 | S200: 9788989675716
... 238 more rows

Sheet 도서관
B1: Want To Read
B2: 번호 | C2: 제목 | D2: 원제 | E2: 일본 번역명 | F2: 저자 | G2: 번역 | H2: 대분류 | I2: 소분류 | J2: 국가 | K2: 연도 | L2: 밀리
B3: 1 | C3: 무기여 잘 있거라 | D3: A Farewell to Arms | F3: Ernest Hemingway | H3: 소설 | I3: 고전 | J3: 미국 | K3: 1929
B4: =IF(C4="","",ROW(B2)) -> 2 | C4: 은하철도의 밤 | D4: 銀河鉄道の夜 | F4: 宮沢賢治 | H4: 소설 | I4: 근대소설 | J4: 일본 | K4: 1934
B5: 3 | C5: 탈무드 | D5: תַּלְמוּד | F5: - | H5: 소설 | I5: 고전 | J5: 이스라엘 | K5: 200
B6: 4 | C6: 사기 | D6: 史記 | F6: 司馬遷 | H6: 수필 | I6: 고전 | J6: 중국 | K6: BCE100
B7: 5 | C7: 그리고 아무도 없었다 | D7: And Then There Were None | F7: Agatha Christie | H7: 소설 | I7: 추리소설 | J7: 영국 | K7: 1939
B8: 6 | C8: 이솝 우화 | D8: Αισώπου Μύθοι | F8: Αἴσωπος | H8: 소설 | I8: 고전 | J8: 그리스 | K8: BCE600
B9: 7 | C9: 롤리타 | D9: Lolita | F9: Влади́мир Влади́мирович Набо́ков | H9: 소설 | I9: 고전 | J9: 미국 | K9: 1955
B10: 8 | C10: 겐지모노가타리 | D10: 源氏物語 | F10: 紫式部 | H10: 소설 | I10: 고전 | J10: 일본 | K10: 1021
B11: 9 | C11: 1Q84 (3권) | D11: - | F11: 村上春樹 | H11: 소설 | I11: 현대소설 | J11: 일본 | K11: 2009
B12: 10 | C12: 료마가 간다 | D12: 竜馬がゆく | F12: 司馬遼太郎 | H12: 소설 | I12: 시대소설 | J12: 일본 | K12: 1966
B13: 11 | C13: 논어 | D13: 論語 | F13: - | H13: 수필 | I13: 고전 | J13: 중국 | K13: BCE
B14: 12 | C14: 목민심서 | D14: 牧民心書 | F14: 정약용 | H14: 수필 | I14: 고전 | J14: 한국 | K14: 1818
B15: 13 | C15: 백범일지 | D15: 白凡逸志 | F15: 김구 | H15: 수필 | I15: 고전 | J15: 한국 | K15: 1947
B16: 14 | C16: 해리 포터 시리즈 제1편 해리 포터와 마법사의 돌 - 전 2권 제2편 해리 포터와 비밀의 방 - 전 2권 제3편 해리 포터와 아즈카반의 죄수 - 전 2권 제4편 해리 포터와 불의 잔 - 전 4권 제5편 해리 포터와 불사조 기사단 - 전 5권 제6편 해리 포터와 혼혈 왕자 - 전 4권 제7편 해리 포터와 죽음의 성물 - 전 4권 | D16: Harry Potter | F16: J. K. Rowling | H16: 소설 | I16: 환상소설 | J16: 영국 | K16: 1997
B17: 15 | C17: 반지의 제왕 제1편 반지 원정대 제2편 두개의 탑 제3편 왕의 귀환 | D17: The Lord of the Rings | F17: J. R. R. Tolkien | H17: 소설 | I17: 환상소설 | J17: 영국 | K17: 1954
B18: 16 | C18: 나니아 연대기 마법사의 조카 사자와 마녀와 옷장 말과 소년 캐스피언 왕자 새벽 출정호의 항해 은의자 최후의 전투 | D18: The Chronicles of Narnia The Magician's Nephew The Lion, the Witch and the Wardrobe The Horse and His Boy Prince Caspian The Voyage of the Dawn Treader The Silver Chair The Last Battle | F18: C. S. Lewis | H18: 소설 | I18: 환상소설 | J18: 영국 | K18: 1950
B19: 17 | C19: 그 많던 싱아는 누가 다 먹었을까 | D19: - | F19: 박완서 | G19: - | H19: 소설 | I19: 고전 | J19: 한국 | K19: 1992
B20: 18 | C20: 토지 (21권) | D20: - | F20: 박경리 | G20: - | H20: 소설 | I20: 고전 | J20: 한국 | K20: 1969
B21: 19 | C21: 다빈치 코드 (2권) | D21: The Da Vinci Code | F21: Dan Brown | H21: 소설 | I21: 현대소설 | J21: 미국 | K21: 2003
B22: 20 | C22: 천사와 악마 (2권) | D22: Angels & Demons | F22: Dan Brown | H22: 소설 | I22: 현대소설 | J22: 미국 | K22: 2000
B23: 21 | C23: 꽃으로도 때리지 말라 | D23: - | F23: 김혜자 | G23: - | H23: 수필 | I23: 에세이 | J23: 한국 | K23: 2004
B24: 22 | C24: 연금술사 | D24: O Alquimista | F24: Paulo Coelho | H24: 소설 | I24: 환상소설 | J24: 브라질 | K24: 1988
B25: 23 | C25: 모모 | D25: Momo | F25: Michael Ende | H25: 소설 | I25: 환상소설 | J25: 독일 | K25: 1973
B26: 24 | C26: 정의란 무엇인가 | D26: Justice: What's the Right Thing to Do? | F26: Michael Sandel | H26: 인문 | I26: 철학 | J26: 미국 | K26: 2009
B27: 25 | C27: 무소유 | D27: - | F27: 법정 | H27: 수필 | I27: 에세이 | J27: 한국 | K27: 1976
B28: 26 | C28: 멈추면, 비로소 보이는 것들 | D28: - | F28: 혜민 | H28: 수필 | I28: 에세이 | J28: 한국 | K28: 2012
B29: 27 | C29: 인생 수업 | D29: Life Lessons | F29: Elisabeth Kübler-Ross David Kessler | H29: 수필 | I29: 에세이 | J29: 미국 | K29: 1972
B30: 28 | C30: 태백산맥 (10권) | D30: - | F30: 조정래 | H30: 소설 | I30: 고전 | J30: 한국 | K30: 1986
B31: 29 | C31: 몽테크리스토 백작 | D31: Le Comte de Monte-Cristo | F31: Alexandre Dumas | H31: 소설 | I31: 고전 | J31: 프랑스 | K31: 1844
B32: 30 | C32: 파랑새 | D32: L'Oiseau bleu | F32: Maurice Maeterlinck | H32: 소설 | I32: 희곡 | J32: 벨기에 | K32: 1908
B33: 31 | C33: 파리의 노트르담 | D33: Notre-Dame de Paris | F33: Victor Hugo | H33: 소설 | I33: 고전 | J33: 프랑스 | K33: 1831
B34: 32 | C34: 공산당 선언 | D34: Das Kommunistische Manifest | F34: Karl Marx Friedrich Engels | H34: 사회 | I34: 경제학 | J34: 영국 | K34: 1848
B35: 33 | C35: 자본론 | D35: Das Kapital | F35: Karl Marx Friedrich Engels | H35: 사회 | I35: 경제학 | J35: 독일 | K35: 1859
B36: 34 | C36: 그리스 로마 신화 | D36: Ἑλληνική · Ῥωμαϊκή μυθολογία | F36: - | H36: 소설 | I36: 고전 | J36: 그리스 | K36: BCE
B37: 35 | C37: 오발탄 | D37: - | F37: 이범선 | H37: 소설 | I37: 고전 | J37: 한국 | K37: 1959
B38: 36 | C38: 깊은 강 | D38: 深い河 | F38: 遠藤周作 | H38: 소설 | I38: 고전 | J38: 일본 | K38: 1993
B39: 37 | C39: 나의 라임오렌지나무 | D39: Meu Pé de Laranja Lima | F39: José Mauro de Vasconcelos | H39: 소설 | I39: 고전 | J39: 브라질 | K39: 1968
B40: 38 | C40: 누구를 위하여 종은 울리나 | D40: For Whom the Bell Tolls | F40: Ernest Hemingway | H40: 소설 | I40: 고전 | J40: 미국 | K40: 1939
B41: 39 | C41: 니벨룽의 노래 | D41: Das Nibelungenlied | F41: - | H41: 소설 | I41: 고전 | J41: 독일 | K41: 1200
B42: 40 | C42: 장미의 이름 (2권) | D42: Il nome della rosa | F42: Umberto Eco | H42: 소설 | I42: 고전 | J42: 이탈리아 | K42: 1980
B43: 41 | C43: 달과 6펜스 | D43: The Moon and Sixpence | F43: William Somerset Maugham | H43: 소설 | I43: 고전 | J43: 영국 | K43: 1919
B44: 42 | C44: 데카메론 | D44: Decameron | F44: Giovanni Boccaccio | H44: 소설 | I44: 고전 | J44: 이탈리아 | K44: 1300
B45: 43 | C45: 독일어 시간 (2권) | D45: Deutschstunde | F45: Siegfried Lenz | H45: 소설 | I45: 고전 | J45: 독일 | K45: 1968
B46: 44 | C46: 드라큘라 | D46: Dracula | F46: Bram Stoker | H46: 소설 | I46: 고전 | J46: 영국 | K46: 1897
B47: 45 | C47: 레 미제라블 | D47: Les Misérables | F47: Victor Hugo | H47: 소설 | I47: 고전 | J47: 프랑스 | K47: 1862
B48: 46 | C48: 루마니아 일기 | D48: Rumänisches Tagebuch | F48: Hans Carossa | H48: 소설 | I48: 고전 | J48: 독일 | K48: 1920
B49: 47 | C49: 루쉰 소설 전집 | D49: 魯迅小說全集 | F49: 魯迅 | H49: 소설 | I49: 고전 | J49: 중국 | K49: 2008
B50: 48 | C50: 마지막 잎새 | D50: The Last Leaf | F50: O. Henry | H50: 소설 | I50: 고전 | J50: 미국 | K50: 1907
B51: 49 | C51: 모래그릇 | D51: 砂の器 | F51: 松本清張 | H51: 소설 | I51: 고전 | J51: 일본 | K51: 1961
B52: 50 | C52: 모비 딕 | D52: Moby-Dick | F52: Herman Melville | H52: 소설 | I52: 고전 | J52: 미국 | K52: 1851
B53: 51 | C53: 바람과 함께 사라지다 | D53: Gone With the Wind | F53: Margaret Mitchell | H53: 소설 | I53: 고전 | J53: 미국 | K53: 1936
B54: 52 | C54: 백야 | D54: Белые ночи | F54: Фёдор Достое́вский | H54: 소설 | I54: 고전 | J54: 러시아 | K54: 1848
B55: 53 | C55: 벤저민 버튼의 기이한 사건 | D55: The Curious Case of Benjamin Button | F55: Francis Scott Key Fitzgerald | H55: 소설 | I55: 고전 | J55: 미국 | K55: 1922
B56: 54 | C56: 석류의 집 | D56: A House of Pomegranates | F56: Oscar Wilde | H56: 소설 | I56: 고전 | J56: 영국 | K56: 1891
B57: 55 | C57: 사회계약론 | D57: Du contrat social ou Principes du droit politique | F57: Jean-Jacques Rousseau | H57: 인문 | I57: 철학 | J57: 프랑스 | K57: 1762
B58: 56 | C58: 상속자들 | D58: The Inheritors | F58: William Golding | H58: 소설 | I58: 고전 | J58: 영국 | K58: 1955
B59: 57 | C59: 서곡 | D59: The Prelude | F59: William Wordsworth | H59: 시 | I59: 고전 | J59: 영국 | K59: 1799
B60: 58 | C60: 서부 전선 이상 없다 | D60: Im Westen nichts Neues | F60: Erich Maria Remarque | H60: 소설 | I60: 고전 | J60: 독일 | K60: 1929
B61: 59 | C61: 소동파 시선 | D61: 蘇東坡 詩選 | F61: 蘇軾 | G61: 류종목 | H61: 시 | I61: 고전 | J61: 중국 | K61: 1000
B62: 60 | C62: 소피의 선택 | D62: Sophie's Choice | F62: William Styron | H62: 소설 | I62: 고전 | J62: 미국 | K62: 1979
B63: 61 | C63: 시계태엽 오렌지 | D63: A Clockwork Orange | F63: Anthony Burgess | H63: 소설 | I63: 고전 | J63: 영국 | K63: 1962
B64: 62 | C64: 악의 꽃 | D64: Les Fleurs du mal | F64: Charles Baudelaire | H64: 시 | I64: 고전 | J64: 프랑스 | K64: 1857
B65: 63 | C65: 압록강은 흐른다 | D65: Der Yalu Fließt | F65: 이미륵 | H65: 소설 | I65: 고전 | J65: 독일 | K65: 1946
B66: 64 | C66: 양철북 | D66: Die Blechtrommel | F66: Günter Grass | H66: 소설 | I66: 고전 | J66: 독일 | K66: 1959
B67: 65 | C67: 에덴의 동쪽 | D67: East of Eden | F67: John Steinbeck | H67: 소설 | I67: 고전 | J67: 미국 | K67: 1952
B68: =IF(C68="","",ROW(B66)) -> 66 | C68: 오디세이아 | D68: Οδύσσεια | F68: Ὅμηρος | H68: 소설 | I68: 고전 | J68: 그리스 | K68: BCE700
B69: 67 | C69: 오페라의 유령 | D69: Le Fantôme de l'Opéra | F69: Gaston Leroux | H69: 소설 | I69: 고전 | J69: 프랑스 | K69: 1910
B70: 68 | C70: 올리버 트위스트 | D70: Oliver Twist | F70: Charles Dickens | H70: 소설 | I70: 고전 | J70: 영국 | K70: 1837
B71: 69 | C71: 우신예찬 | D71: Stultitiae Laus | F71: Erasmus | H71: 수필 | I71: 고전 | J71: 네덜란드 | K71: 1511
B72: 70 | C72: 웃는 남자 | D72: L'homme qui rit | F72: Victor Hugo | H72: 소설 | I72: 고전 | J72: 프랑스 | K72: 1869
B73: 71 | C73: 위대한 유산 | D73: Great Expectations | F73: Charles Dickens | H73: 소설 | I73: 고전 | J73: 영국 | K73: 1860
B74: 72 | C74: 율리시스 | D74: Ulysses | F74: James Joyce | H74: 소설 | I74: 고전 | J74: 아일랜드 | K74: 1922
B75: 73 | C75: 인간 불평등 기원론 | D75: Discours sur l'origine et les fondements de l'inégalité parmi les hommes | F75: Jean-Jacques Rousseau | H75: 인문 | I75: 철학 | J75: 프랑스 | K75: 1755
B76: 74 | C76: 차라투스트라는 이렇게 말했다 | D76: Also sprach Zarathustra | F76: Friedrich Nietzsche | H76: 인문 | I76: 철학 | J76: 독일 | K76: 1883
B77: 75 | C77: 일리아스 | D77: Ίλιάς | F77: Ὅμηρος | H77: 소설 | I77: 고전 | J77: 그리스 | K77: BCE700
B78: 76 | C78: 자유론 | D78: On Liberty | F78: John Stuart Mill | H78: 인문 | I78: 철학 | J78: 영국 | K78: 1859
B79: 77 | C79: 젊은 예술가의 초상 | D79: A Portrait of the Artist as a Young Man | F79: James Joyce | H79: 소설 | I79: 고전 | J79: 아일랜드 | K79: 1916
B80: 78 | C80: 정글북 | D80: The Jungle Book | F80: Rudyard Kipling | H80: 소설 | I80: 고전 | J80: 영국 | K80: 1894
B81: 79 | C81: 천일야화 | D81: كتاب ألف ليلة وليلة | F81: - | H81: 소설 | I81: 고전 | J81: 이란 | K81: 1400
B82: 80 | C82: 톰 아저씨의 오두막 | D82: Uncle Tom's Cabin | F82: Harriet Beecher Stowe | H82: 소설 | I82: 고전 | J82: 미국 | K82: 1852
B83: 81 | C83: 파비안 | D83: Fabian | F83: Erich Kästner | H83: 소설 | I83: 고전 | J83: 독일 | K83: 1930
B84: 82 | C84: 프랑켄슈타인 | D84: Frankenstein | F84: Mary Shelley | H84: 소설 | I84: 고전 | J84: 영국 | K84: 1815
B85: 83 | C85: 피가로 3부작 세비야의 이발사 피가로의 결혼 죄 많은 어머니 | D85: Figaro Le Barbier de Séville Le Marriage de Figaro La Mère coupable | F85: Pierre Beaumarchais | H85: 소설 | I85: 고전 | J85: 프랑스 | K85: 1793
B86: 84 | C86: 피그말리온 | D86: Pygmalion | F86: George Bernard Shaw | H86: 소설 | I86: 고전 | J86: 아일랜드 | K86: 1912
B87: 85 | C87: 피네간의 경야 | D87: Finnegans Wake | F87: James Joyce | H87: 소설 | I87: 고전 | J87: 아일랜드 | K87: 1939
B88: 86 | C88: 내 이름은 빨강 (2권) | D88: Benim Adım Kırmızı | F88: Orhan Pamuk | H88: 소설 | I88: 추리소설 | J88: 튀르키예 | K88: 1998
B89: 87 | C89: 파수병 | D89: The Sentinel | F89: Arthur C. Clarke | H89: 소설 | I89: 과학소설 | J89: 영국 | K89: 1951
B90: 88 | C90: 대화편 | F90: Πλάτων | H90: 인문 | I90: 철학 | J90: 그리스 | K90: BCE400
B91: 89 | C91: 그가 돌아왔다 | D91: Er Ist Wieder Da | F91: Timur Vermes | H91: 소설 | I91: 현대소설 | J91: 독일 | K91: 2011
B92: 90 | C92: 더 나은 삶을 상상하라 | D92: Ill Fares the Land | F92: Tony Judt | H92: 사회 | I92: 사회비평 | J92: 영국 | K92: 2010
B93: 91 | C93: 신은 위대하지 않다 | D93: God Is Not Great | F93: Christopher Eric Hitchens | H93: 인문 | I93: 종교학 | J93: 미국 | K93: 2007
B94: 92 | C94: 본격 제2차 세계대전 만화 (2권) | D94: - | F94: 굽시니스트 | H94: 만화 | I94: 역사학 | J94: 한국 | K94: 2008
B95: 93 | C95: 서구의 몰락 | D95: Der Untergang des Abendlandes | F95: Oswald Spengler | H95: 인문 | I95: 역사학 | J95: 독일 | K95: 1922
B96: 94 | C96: 블랙 아테나 (3권) | D96: Black Athena | F96: Martin Bernal | H96: 인문 | I96: 역사학 | J96: 미국 | K96: 1987
B97: 95 | C97: 역사란 무엇인가 | D97: What Is History? | F97: E. H. Carr | H97: 인문 | I97: 역사학 | J97: 영국 | K97: 1961
B98: 96 | C98: 역사 | D98: Ἱστορίαι | F98: Ἡρόδοτος | H98: 인문 | I98: 역사학 | J98: 그리스 | K98: BCE430
B99: 97 | C99: 펠로폰네소스 전쟁사 | D99: Ιστορία του Πελοποννησιακού Πολέμου | F99: Θουκυδίδης | G99: 천병희 | H99: 인문 | I99: 역사학 | J99: 그리스 | K99: BCE400
B100: 98 | C100: 한국통사 | D100: 韓國痛史 | F100: 박은식 | H100: 인문 | I100: 역사학 | J100: 한국 | K100: 1915
B101: 99 | C101: 한국독립운동지혈사 | D101: 韓國獨立運動之血史 | F101: 박은식 | H101: 인문 | I101: 역사학 | J101: 한국 | K101: 1920
B102: 100 | C102: 역사, 진실에 대한 이야기의 이야기 | D102: Is History Fiction? | F102: Ann Curthoys John Docker | H102: 인문 | I102: 역사학 | J102: 미국 | K102: 2006
B103: 101 | C103: 조선상고사 | D103: 朝鮮上古史 | F103: 신채호 | H103: 인문 | I103: 역사학 | J103: 한국 | K103: 1948
B104: 102 | C104: 역사의 연구 | D104: A Study of History | F104: Arnold Joseph Toynbee | H104: 인문 | I104: 역사학 | J104: 영국 | K104: 1961
B105: 103 | C105: 잃어버린 시간을 찾아서 | D105: À la recherche du temps perdu | F105: Marcel Proust | H105: 소설 | I105: 고전 | J105: 프랑스 | K105: 1927
B106: 104 | C106: 해저 2만리 | D106: Vingt mille lieues sous les mers | F106: Jules Verne | H106: 소설 | I106: 과학소설 | J106: 프랑스 | K106: 1870
B107: 105 | C107: 자연철학의 수학적 원리 (3권) | D107: Philosophiæ Naturalis Principia Mathematica | F107: Isaac Newton | H107: 과학 | I107: 자연과학 | J107: 영국 | K107: 1687
B108: 106 | C108: 신곡 | D108: Divina Commedia | F108: Dante Alighieri | H108: 소설 | I108: 고전 | J108: 이탈리아 | K108: 1320
B109: 107 | C109: 칭기스칸, 잠든 유럽을 깨우다 | D109: Genghis Khan and the Making of the Modern World | F109: Jack Weatherford | H109: 인문 | I109: 역사학 | J109: 미국 | K109: 2004
B110: 108 | C110: 화씨 451 | D110: Fahrenheit 451 | F110: Ray Bradbury | H110: 소설 | I110: 과학소설 | J110: 미국 | K110: 1953
B111: 109 | C111: 방법서설 | D111: Discours de la méthode | F111: René Descartes | H111: 인문 | I111: 철학 | J111: 네덜란드 | K111: 1637
B112: 110 | C112: 괴테와의 대화 (2권) | D112: Gespräche mit Goethe | F112: Johann Peter Eckermann | H112: 인문 | I112: 철학 | J112: 독일 | K112: 1836
B113: 111 | C113: 학문을 권함 | D113: 学問のすゝめ | F113: 福澤諭吉 | H113: 수필 | I113: 철학 | J113: 일본 | K113: 1876
B114: 112 | C114: 최고의 유산' 상속받기 | D114: The Ultimate Gift | F114: Jim Stovall | H114: 수필 | I114: 자기개발 | J114: 미국 | K114: 2001
B115: 113 | C115: 소설이 필요할 때 | D115: The Novel Cure | F115: Ella Berthoud Susan Elderkin | H115: 수필 | I115: 에세이 | J115: 영국 | K115: 2013
B116: 114 | C116: 인생을 바꾸는 데는 단 하루도 걸리지 않는다 | D116: 「そ・わ・か」の法則 人生を輝かせる"実践方程式" | F116: 小林正観 | H116: 수필 | I116: 자기개발 | J116: 일본 | K116: 2007
B117: 115 | C117: 예의 없는 새끼들 때문에 열받아서 쓴 생활 예절 | D117: - | F117: 김불꽃 | H117: 실용 | I117: 자기개발 | J117: 한국 | K117: 2018
B118: 116 | C118: 사월의 미, 칠월의 솔 | D118: - | F118: 김연수 | H118: 소설 | I118: 현대소설 | J118: 한국 | K118: 2013
B119: 117 | C119: 우리 본성의 선한 천사 | D119: The Better Angels of Our Nature | F119: Steven Pinker | H119: 인문 | I119: 심리학 | J119: 캐나다 | K119: 2011
B120: 118 | C120: 사람의 목소리는 빛보다 멀리 간다 | D120: 十個詞彙中的中國 | F120: 余华 | H120: 수필 | I120: 에세이 | J120: 중국 | K120: 2011
B121: 119 | C121: 당신 인생의 이야기 | D121: Stories of Your Life and Others | F121: Ted Chiang | H121: 소설 | I121: 과학소설 | J121: 미국 | K121: 2002
B122: 120 | C122: 대한민국에서 일하는 엄마로 산다는 것 | D122: - | F122: 신의진 | H122: 수필 | I122: 에세이 | J122: 한국 | K122: 2014 | L122: O
B123: 121 | C123: 블루 드레스 | D123: The Strange Alchemy of Life and Law | F123: Albie Sachs | H123: 사회 | I123: 법학 | J123: 남아프리카공화국 | K123: 2009
B124: 122 | C124: 유시민의 글쓰기 특강 | D124: - | F124: 유시민 | H124: 인문 | I124: 에세이 | J124: 한국 | K124: 2015 | L124: O
B125: 123 | C125: 속죄 | D125: Atonement | F125: Ian McEwan | H125: 소설 | I125: 현대소설 | J125: 영국 | K125: 2001
B126: 124 | C126: 불멸의 신성가족 | D126: - | F126: 김두식 | H126: 수필 | I126: 법학 | J126: 한국 | K126: 2009
B127: 125 | C127: 진화심리학 | D127: Evolutionary Psychology | F127: David Buss | H127: 인문 | I127: 심리학 | J127: 미국 | K127: 1999 | L127: O
B128: 126 | C128: 나는 세계로 출근한다 | D128: - | F128: 박은영 | H128: 수필 | I128: 진로 | J128: 한국 | K128: 2012
B129: 127 | C129: 희박한 공기 속으로 | D129: Into Thin Air | F129: Jon Krakauer | H129: 수필 | I129: 에세이 | J129: 미국 | K129: 1997
B130: 128 | C130: 거짓말의 심리학 | D130: Spy the Lie | F130: Philip Houston Michael Floyd Susan Carnicero | H130: 인문 | I130: 심리학 | J130: 미국 | K130: 2012
B131: 129 | C131: 우주의 끝을 찾아서 | D131: - | F131: 이강환 | H131: 과학 | I131: 천문학 | J131: 한국 | K131: 2014
B132: =IF(C132="","",ROW(B130)) -> 130 | C132: 물리와 함께하는 50일 | D132: 50 Physics Ideas You Really Need to Know | F132: Joanne Baker | H132: 과학 | I132: 물리학 | J132: 미국 | K132: 2007
B133: 131 | C133: 인생이 빛나는 정리의 마법 | D133: 人生がときめく片づけの魔法 | F133: 近藤麻理恵 | H133: 수필 | I133: 자기개발 | J133: 일본 | K133: 2012
B134: 132 | C134: 에브리데이 | D134: Every Day | F134: David Levithan | H134: 소설 | I134: 성장소설 | J134: 미국 | K134: 2012
B135: 133 | C135: 김석철의 세계건축기행 | D135: - | F135: 김석철 | H135: 인문 | I135: 건축학 | J135: 한국 | K135: 2000
B136: 134 | C136: 싸울 기회 | D136: A Fighting Chance | F136: Elizabeth Warren | H136: 수필 | I136: 회고록 | J136: 미국 | K136: 2014
B137: 135 | C137: 무신론자를 위한 종교 | D137: Religion for Atheists | F137: Alain de Botton | H137: 인문 | I137: 종교학 | J137: 영국 | K137: 2011
B138: 136 | C138: 나는 왜 너가 아니고 나인가 | D138: - | F138: - | H138: 수필 | I138: 에세이 | J138: 한국 | K138: 2017
B139: 137 | C139: 판결을 다시 생각한다 | D139: - | F139: 김영란 | H139: 인문 | I139: 법학 | J139: 한국 | K139: 2015
B140: 138 | C140: 기울어진 저울 | D140: - | F140: 이춘재 김남일 | H140: 인문 | I140: 법학 | J140: 한국 | K140: 2013 | L140: O
B141: 139 | C141: 젊은 날의 초상 | D141: - | F141: 이문열 | H141: 소설 | I141: 고전 | J141: 한국 | K141: 1981
B142: 140 | C142: 사람의 아들 | D142: - | F142: 이문열 | H142: 소설 | I142: 고전 | J142: 한국 | K142: 1979
B143: 141 | C143: 유리가면 (49권) | D143: ガラスの仮面 | F143: 美内すずえ | H143: 만화 | I143: 성장소설 | J143: 일본 | K143: 1976
B144: 142 | C144: 아뉴스 데이 (4권) | D144: - | F144: 황미나 | H144: 만화 | I144: 성장소설 | J144: 한국 | K144: 2014
B145: 143 | C145: 불새의 늪 (6권) | D145: - | F145: 황미나 | H145: 만화 | I145: 성장소설 | J145: 한국 | K145: 2015
B146: 144 | C146: 굿바이 미스터블랙 (4권) | D146: - | F146: 황미나 | H146: 만화 | I146: 성장소설 | J146: 한국 | K146: 1997
B147: 145 | C147: 북해의 별 (15권) | D147: - | F147: 김혜린 | H147: 만화 | I147: 성장소설 | J147: 한국 | K147: 2005
B148: 146 | C148: 테르미도르 (5권) | D148: - | F148: 김혜린 | H148: 만화 | I148: 성장소설 | J148: 한국 | K148: 2023
B149: 147 | C149: 오르페우스의 창 (18권) | D149: オルフェウスの窓 | F149: 池田理代子 | H149: 만화 | I149: 성장소설 | J149: 일본 | K149: 1975
B150: 148 | C150: 별빛속에 (8권) | D150: - | F150: 강경옥 | H150: 만화 | I150: 성장소설 | J150: 한국 | K150: 2005
B151: 149 | C151: 17세의 나레이션 (2권) | D151: - | F151: 강경옥 | H151: 만화 | I151: 성장소설 | J151: 한국 | K151: 2003
B152: 150 | C152: 라비헴 폴리스 (3권) | D152: - | F152: 강경옥 | H152: 만화 | I152: 성장소설 | J152: 한국 | K152: 2000
B153: 151 | C153: 깊은 밤 깊은 곳에 (배반의 축배) | D153: The Other Side of Midnight | F153: Sidney Sheldon | H153: 소설 | I153: 추리소설 | J153: 미국 | K153: 1973
B154: 152 | C154: 13월의 천사 (천사의 분노) | D154: Rage of Angels | F154: Sidney Sheldon | H154: 소설 | I154: 추리소설 | J154: 미국 | K154: 1980
B155: 153 | C155: 게임의 여왕 | D155: Master of the Game | F155: Sidney Sheldon | H155: 소설 | I155: 추리소설 | J155: 미국 | K155: 1982
B156: 154 | C156: 벌거벗은 얼굴 | D156: The Naked Face | F156: Sidney Sheldon | H156: 소설 | I156: 추리소설 | J156: 미국 | K156: 2006
B157: 155 | C157: 계속해보겠습니다 | D157: - | F157: 황정은 | H157: 소설 | I157: 현대소설 | J157: 한국 | K157: 2014
B158: 156 | C158: 아랑은 왜 | D158: - | F158: 김영하 | H158: 소설 | I158: 추리소설 | J158: 한국 | K158: 2020
B159: 157 | C159: 청춘의 문장들 | D159: - | F159: 김연수 | H159: 수필 | I159: 에세이 | J159: 한국 | K159: 2004
B160: 158 | C160: 법의 정신 | D160: De l'esprit des loix | F160: Montesquieu | H160: 인문 | I160: 철학 | J160: 프랑스 | K160: 1748 | L160: O
B161: 159 | C161: 통치론 | D161: Two Treatises of Government | F161: John Locke | H161: 인문 | I161: 철학 | J161: 영국 | K161: 1689 | L161: O
B162: 160 | C162: 21세기 자본 | D162: Le Capital au XXIe siècle | F162: Thomas Piketty | H162: 사회 | I162: 사회학 | J162: 프랑스 | K162: 2013 | L162: O
B163: 161 | C163: 예루살렘의 아이히만 | D163: Eichmann in Jerusalem | F163: Hannah Arendt | H163: 인문 | I163: 철학 | J163: 미국 | K163: 1963
B164: 162 | C164: 69 | D164: 69 | F164: 村上龍 | H164: 소설 | I164: 고전 | J164: 일본 | K164: 1987
B165: 163 | C165: 삼미 슈퍼스타즈의 마지막 팬클럽 | D165: - | F165: 박민규 | H165: 소설 | I165: 현대소설 | J165: 한국 | K165: 2003 | L165: O
B166: 164 | C166: 죽음을 넘어 시대의 어둠을 넘어 | D166: - | F166: 황석영 | H166: 인문 | I166: 역사학 | J166: 한국 | K166: 1985
B167: 165 | C167: 인 콜드 블러드 | D167: In Cold Blood | F167: Truman Capote | H167: 소설 | I167: 추리소설 | J167: 미국 | K167: 1966
B168: 166 | C168: 인간의 조건 | D168: The Human Condition | F168: Hannah Arendt | H168: 인문 | I168: 철학 | J168: 미국 | K168: 1958 | L168: O
B169: 167 | C169: 리더들의 리더 시너지스트 | D169: The Synergist | F169: Les McKeown | H169: 사회 | I169: 경영학 | J169: 미국 | K169: 2012 | L169: O
B170: 168 | C170: 실행에 집중하라 | D170: Execution | F170: Larry Bossidy, Ram Charan | H170: 사회 | I170: 경영학 | J170: 미국 | K170: 2002
B171: 169 | C171: 위대한 기업의 선택 | D171: Great by Choice | F171: Jim Collins, Morten T. Hansen | H171: 사회 | I171: 경영학 | J171: 미국 | K171: 2011
B172: 170 | C172: 퍼스널 MBA | D172: The Personal MBA | F172: Josh Kaufman | H172: 사회 | I172: 경영학 | J172: 미국 | K172: 2010
B173: 171 | C173: 위저드 베이커리 | D173: - | F173: 구병모 | H173: 소설 | I173: 환상소설 | J173: 한국 | K173: 2009 | L173: O
B174: 172 | C174: 단어의 사생활 | D174: The Secret Life of Pronouns | F174: James W. Pennebaker | H174: 인문 | I174: 심리학 | J174: 미국 | K174: 2011 | L174: O
B175: 173 | C175: 어떻게 세계는 서양이 주도하게 되었는가 | D175: The Origins of the Modern World | F175: Robert B. Marks | H175: 인문 | I175: 역사학 | J175: 미국 | K175: 2002 | L175: O
B176: 174 | C176: 핵 벼랑을 걷다 | D176: My Journey at the Nuclear Brink | F176: William Perry | H176: 사회 | I176: 정치학 | J176: 미국 | K176: 2015
B177: 175 | C177: 태도가 작품이 될 때 | D177: - | F177: 박보나 | H177: 수필 | I177: 에세이 | J177: 한국 | K177: 2019
B178: 176 | C178: 책을 읽을 때 우리가 보는 것들 | D178: What We See When We Read | F178: Peter Mendelsund | H178: 수필 | I178: 에세이 | J178: 미국 | K178: 2014
B179: 177 | C179: 미술에게 말을 걸다 | D179: - | F179: 이소영 | H179: 인문 | I179: 미학 | J179: 한국 | K179: 2019 | L179: O
B180: 178 | C180: 예술적 상상력 | D180: - | F180: 오종우 | H180: 인문 | I180: 미학 | J180: 한국 | K180: 2019
B181: 179 | C181: 디자인과 도덕 | D181: - | F181: 김상규 | H181: 인문 | I181: 미학 | J181: 한국 | K181: 2018
B182: 180 | C182: 모던아트 | D182: Moderne Kunst | F182: Hans Werner Holzwarth | H182: 인문 | I182: 미학 | J182: 독일 | K182: 2022
B183: 181 | C183: 우리 각자의 미술관 | D183: - | F183: 최혜진 | H183: 인문 | I183: 미학 | J183: 한국 | K183: 2020 | L183: O
B184: 182 | C184: 심리학의 오해 | D184: How to Think Straight About Psychology | F184: Keith Stanovich | H184: 인문 | I184: 심리학 | J184: 미국 | K184: 1986
B185: 183 | C185: 갈등 도시 | D185: - | F185: 김시덕 | H185: 인문 | I185: 건축학 | J185: 한국 | K185: 2024 | L185: O
B186: 184 | C186: 서울 선언 | D186: - | F186: 김시덕 | H186: 인문 | I186: 건축학 | J186: 한국 | K186: 2024 | L186: O
B187: 185 | C187: 번역의 탄생 | D187: - | F187: 이희재 | H187: 인문 | I187: 언어학 | J187: 한국 | K187: 2009 | L187: O
B188: 186 | C188: 공포의 제국 (2권) | D188: State of Fear | F188: Michael Crichton | H188: 소설 | I188: 현대소설 | J188: 미국 | K188: 2004
B189: 187 | C189: 당신과 꼭 결혼하고 싶습니다 | D189: - | F189: 곽재식 | H189: 소설 | I189: 환상소설 | J189: 한국 | K189: 2013
B190: 188 | C190: 仕事は１枚の表にまとめなさい。 | D190: - | F190: 池田昌人 | H190: 사회 | I190: 경영학 | J190: 한국 | K190: 2024
B191: 189 | C191: 哲学の誤配 | D191: - | F191: 東浩紀 | H191: 인문 | I191: 철학 | J191: 일본 | K191: 2020
B192: 190 | C192: 「武国」日本 | D192: - | F192: 佐伯真一 | H192: 사회 | I192: 정치학 | J192: 일본 | K192: 2018
B193: 191 | C193: 누가 제발 이 버스 좀 멈춰주세요 | D193: - | F193: 지난 | H193: 소설 | I193: 현대소설 | J193: 한국 | K193: 2023
B194: 192 | C194: 잘못된 장소 잘못된 시간 | D194: Wrong Place Wrong Time | F194: Gillian McAllister | H194: 소설 | I194: 추리소설 | J194: 영국 | K194: 2022
B195: 193 | C195: 賢者の愛 | D195: - | F195: 山田詠美 | H195: 소설 | I195: 현대소설 | J195: 일본 | K195: 2015
B196: =IF(C196="","",ROW(B194)) -> 194 | C196: 집오리와 들오리의 코인로커 | D196: - | E196: アヒルと鴨のコインロッカー | F196: 伊坂幸太郎 | H196: 소설 | I196: 추리소설 | J196: 일본 | K196: 2003
B197: 195 | C197: 벚꽃 지는 계절에 그대를 그리워하네 | D197: - | E197: 葉桜の季節に君を想うということ | F197: 歌野晶午 | H197: 소설 | I197: 추리소설 | J197: 일본 | K197: 2007
B198: 196 | C198: 물질의 세계 | D198: Material World | F198: Ed Conway | H198: 인문 | I198: 역사학 | J198: 영국 | K198: 2023
B199: 197 | C199: 심장의 아이 | D199: 心臓の王国 | F199: 竹宮ゆゆこ | H199: 소설 | I199: 현대소설 | J199: 일본 | K199: 2023 | L199: O
B200: 198 | C200: 어린 시절의 부모를 이해하는가 | D200: 精神科医が教える親を憎むのをやめる方法 | F200: 益田裕介 | H200: 인문 | I200: 심리학 | J200: 일본 | K200: 2023 | L200: O
... 205 more rows

Sheet 연구실
B1: Study To Read
B2: 번호 | C2: 제목 | D2: 부제 | E2: 저자 | F2: 하트 | G2: 분류 | H2: 2차 분류 | I2: 완독일 | J2: 발매일 | K2: 페이지
B3: 1 | C3: 루마니아어 정서법의 상징적 의미 | D3: 1994년 개정된 정서법을 중심으로 | E3: 이문수 | F3: - | G3: 루마니아 | H3: 언어 | I3: 2021.08.12 | J3: 2011.11.22 | K3: 22
B4: =IF(C4="","",ROW(B2)) -> 2 | C4: 한자어의 오용에 대하여 | D4: 한자의 형태 및 발음과 관련된 사례를 중심으로 | E4: 팽철호 | F4: - | G4: 한국어 | H4: 한자 | I4: 2021.08.12 | J4: - | K4: 34
B5: =IF(C5="","",ROW(B3)) -> 3 | C5: 천전리 암각화로 본 한국 선사 및 고대 미술양식 | D5: - | E5: 전호태 | F5: - | G5: 한국사 | H5: 선사 | I5: 2021.08.13 | J5: 2016.09 | K5: 27
B6: 4 | C6: 고대사 연구와 고고학 | D6: - | E6: 최성락 | F6: - | G6: 한국사 | H6: 선사 | I6: 2021.08.14 | J6: - | K6: 18
B7: 5 | C7: 고인돌의 숭배 의식에 대한 연구 | D7: 요령지역을 중심으로 | E7: 하문식 | F7: - | G7: 한국사 | H7: 선사 | I7: 2021.08.15 | J7: 2008.02.20 | K7: 27

Sheet 분석실
B2: =책장!U1 -> 페이지 | C2: =책장!V1 -> 무게 | D2: 일일 페이지 | E2: 일일 무게
B3: =SUM(책장!Q3:Q438) -> 139524 | C3: =SUM(책장!R3:R438) -> 176239 | D3: =B3/ABS(TODAY()-DATE(2019,1,1)) -> 64.23756906 | E3: =C3/ABS(TODAY()-DATE(2019,1,1)) -> 81.14134438
B6: 대분류 | C6: 合計 / 횟수
B7: 소설 | C7: 193
B8: 수필 | C8: 93
B9: 교양 | C9: 66
B10: 인문 | C10: 35
B11: 공학 | C11: 23
B12: 사회 | C12: 18
B13: 실용 | C13: 11
B14: 시 | C14: 4
B15: 만화 | C15: 3
B18: 하트 | C18: 個数 / 번호
B19: - | C19: 254
B20: ♥ | C20: 155
B21: X | C21: 26
B31: 국가 | C31: 個数 / 번호
B32: 한국 | C32: 231
B33: 일본 | C33: 101
B34: 미국 | C34: 44
B35: 영국 | C35: 20
B36: 프랑스 | C36: 7
B37: 이스라엘 | C37: 5
B38: 독일 | C38: 5
B39: 중국 | C39: 4
B40: 캐나다 | C40: 3
B41: 체코 | C41: 3
B42: 스웨덴 | C42: 2
B43: 아르헨티나 | C43: 2
B44: 노르웨이 | C44: 1
B45: 오스트레일리아 | C45: 1
B46: 스위스 | C46: 1
B47: 루마니아 | C47: 1
B48: 이탈리아 | C48: 1
B49: 스페인 | C49: 1
B50: 오스트리아 | C50: 1
B51: 콜롬비아 | C51: 1
B53: 연도 | C53: 책
B54: 2019 | C54: =SUMIFS(책장!I:I,책장!N:N,">="&DATE(분석실!B54,1,1),책장!N:N,"<="&DATE(분석실!B54,12,31)) -> 183
B55: 2020 | C55: =SUMIFS(책장!I:I,책장!N:N,">="&DATE(분석실!B55,1,1),책장!N:N,"<="&DATE(분석실!B55,12,31)) -> 60
B56: 2021 | C56: =SUMIFS(책장!I:I,책장!N:N,">="&DATE(분석실!B56,1,1),책장!N:N,"<="&DATE(분석실!B56,12,31)) -> 7
B57: 2022 | C57: =SUMIFS(책장!I:I,책장!N:N,">="&DATE(분석실!B57,1,1),책장!N:N,"<="&DATE(분석실!B57,12,31)) -> 29
B58: 2023 | C58: =SUMIFS(책장!I:I,책장!N:N,">="&DATE(분석실!B58,1,1),책장!N:N,"<="&DATE(분석실!B58,12,31)) -> 39
B59: 2023 | C59: =SUMIFS(책장!I:I,책장!N:N,">="&DATE(분석실!B59,1,1),책장!N:N,"<="&DATE(분석실!B59,12,31)) -> 39
B60: 2024 | C60: =SUMIFS(책장!I:I,책장!N:N,">="&DATE(분석실!B60,1,1),책장!N:N,"<="&DATE(분석실!B60,12,31)) -> 76
B61: 2025 | C61: =SUMIFS(책장!I:I,책장!N:N,">="&DATE(분석실!B61,1,1),책장!N:N,"<="&DATE(분석실!B61,12,31)) -> 0
B62: 2026 | C62: =SUMIFS(책장!I:I,책장!N:N,">="&DATE(분석실!B62,1,1),책장!N:N,"<="&DATE(분석실!B62,12,31)) -> 0
B63: 2027 | C63: =SUMIFS(책장!I:I,책장!N:N,">="&DATE(분석실!B63,1,1),책장!N:N,"<="&DATE(분석실!B63,12,31)) -> 0
B64: 2028 | C64: =SUMIFS(책장!I:I,책장!N:N,">="&DATE(분석실!B64,1,1),책장!N:N,"<="&DATE(분석실!B64,12,31)) -> 0
B65: 2029 | C65: =SUMIFS(책장!I:I,책장!N:N,">="&DATE(분석실!B65,1,1),책장!N:N,"<="&DATE(분석실!B65,12,31)) -> 0
B66: 2030 | C66: =SUMIFS(책장!I:I,책장!N:N,">="&DATE(분석실!B66,1,1),책장!N:N,"<="&DATE(분석실!B66,12,31)) -> 0
B67: 2031 | C67: =SUMIFS(책장!I:I,책장!N:N,">="&DATE(분석실!B67,1,1),책장!N:N,"<="&DATE(분석실!B67,12,31)) -> 0
